{"text_format":"1","workbook":"xlsx","n_sheets":3,"sheets":["鑑","病院経営管理指標等調査","data"],"not_rendered":{"charts":0,"images":1,"macros":1,"external_links":0,"defined_names":2,"comments":0,"pivot_tables":0},"unopened":[],"bounds":{"document_bytes":16777216,"sheet_cells":100000,"rows_first":2000,"rows_last":500,"rows_between":2000,"halvings":0,"cell_chars":16384,"cell_head_chars":4096},"cells_cut":0,"cells_raw":0,"read":"whole","date_system":"1900"}

{"sheet":"鑑","index":0,"n_rows":51,"n_cols":1,"rows_kept":51,"cut":false,"hidden":false,"merged":[[0,0,1,32],[2,0,3,32],[50,0,53,32]]}
["令和3年度 医療施設経営安定化推進事業"]
[]
["病院経営管理指標等調査"]
[]
[]
[]
[]
[]
[]
[]
[]
[]
[]
[]
[]
[]
[]
[]
[]
[]
[]
[]
[]
[]
[]
[]
[]
[]
[]
[]
[]
[]
[]
[]
[]
[]
[]
[]
[]
[]
[]
[]
[]
[]
[]
[]
[]
[]
[]
[]
["※弊社では個人情報及び法人情報を特定できるデータを含む文書類については、施錠可能な場所に保管しています。\n　個人情報及び法人情報の取扱いについては情報管理に関する社内規程を定め、個人情報及び法人情報の保護を徹底しています。"]

{"sheet":"病院経営管理指標等調査","index":1,"n_rows":565,"n_cols":69,"rows_kept":565,"cut":false,"hidden":false,"merged":[[116,38,116,64],[117,35,117,37],[117,38,117,64],[118,35,118,37],[118,38,118,64],[119,35,119,37],[119,38,119,64],[123,1,123,3],[123,35,123,37],[116,1,116,3],[116,4,116,30],[117,1,117,3],[117,4,117,30],[118,1,118,3],[118,4,118,30],[119,1,119,3],[119,4,119,30],[88,0,89,9],[468,16,469,20],[468,21,469,25],[458,3,458,5],[458,6,458,9],[458,11,458,14],[458,16,458,19],[446,0,446,32],[443,3,443,5],[443,6,443,8],[443,10,443,12],[443,14,443,16],[443,18,443,20],[443,22,443,24],[466,11,466,14],[466,16,466,19],[442,6,442,8],[433,6,433,14],[433,15,433,17],[433,18,433,25],[443,26,443,28],[438,15,438,17],[438,18,438,25],[436,3,436,5],[124,1,124,3],[123,4,123,7],[124,4,124,7],[418,8,418,10],[418,11,418,19],[418,20,418,22],[411,23,411,31],[399,3,400,10],[508,30,508,32],[507,9,507,11],[474,8,474,10],[474,11,474,19],[474,20,474,22],[474,23,474,31],[423,23,423,31],[411,20,411,22],[248,0,249,8],[248,17,249,24],[249,9,249,12],[249,13,249,16],[249,25,249,28],[271,29,271,32],[251,18,251,24],[109,1,109,3],[109,4,109,30],[110,1,110,3],[110,4,110,30],[111,1,111,3],[111,4,111,30],[112,1,112,3],[112,4,112,30],[489,20,489,22],[489,23,489,31],[503,3,503,8],[504,4,504,8],[505,3,505,8],[506,0,506,8],[501,0,502,8],[506,27,506,29],[504,9,504,11],[489,44,489,46],[489,47,489,55],[489,56,489,58],[495,20,495,22],[503,9,503,11],[503,12,503,14],[90,16,90,31],[91,16,91,31],[92,16,92,31],[93,16,93,31],[94,16,94,31],[95,16,95,31],[96,16,96,31],[97,16,97,31],[98,16,98,31],[99,16,99,31],[100,16,100,31],[102,10,102,12],[124,35,124,37],[123,38,123,41],[124,38,124,41],[109,35,109,37],[109,38,109,64],[110,35,110,37],[110,38,110,64],[111,35,111,37],[111,38,111,64],[112,35,112,37],[112,38,112,64],[494,8,494,10],[494,11,494,19],[116,35,116,37],[494,59,494,67],[495,8,495,10],[495,11,495,19],[418,23,418,31],[411,8,411,10],[423,11,423,19],[423,20,423,22],[510,3,510,8],[496,8,496,10],[496,11,496,19],[496,20,496,22],[496,23,496,31],[496,44,496,46],[487,56,487,58],[476,3,477,7],[467,3,467,5],[466,21,466,24],[466,26,466,29],[468,3,469,10],[468,11,469,15],[492,47,492,55],[485,3,488,7],[485,44,485,46],[485,47,485,55],[489,8,489,10],[502,9,502,11],[502,30,502,32],[501,15,502,26],[501,9,501,14],[501,27,501,32],[506,12,506,14],[506,15,506,26],[505,9,505,11],[506,9,506,11],[492,44,492,46],[492,56,492,58],[493,11,493,19],[493,20,493,22],[493,23,493,31],[493,44,493,46],[493,47,493,55],[493,56,493,58],[504,30,504,32],[505,30,505,32],[506,30,506,32],[503,27,503,29],[503,30,503,32],[495,23,495,31],[495,44,495,46],[495,47,495,55],[495,56,495,58],[492,8,492,10],[492,11,492,19],[492,20,492,22],[494,20,494,22],[494,23,494,31],[494,44,494,46],[494,47,494,55],[494,56,494,58],[504,12,504,14],[504,15,504,26],[504,27,504,29],[504,47,504,49],[489,39,496,43],[495,59,495,67],[496,47,496,55],[496,56,496,58],[501,35,502,43],[501,44,501,49],[501,50,502,61],[501,62,501,67],[502,44,502,46],[502,47,502,49],[502,62,502,64],[502,65,502,67],[503,38,503,43],[503,44,503,46],[503,50,503,61],[503,62,503,64],[503,65,503,67],[489,3,496,7],[490,11,490,19],[490,20,490,22],[490,23,490,31],[490,44,490,46],[490,47,490,55],[490,59,490,67],[491,8,491,10],[491,11,491,19],[496,59,496,67],[491,20,491,22],[491,23,491,31],[491,44,491,46],[491,47,491,55],[491,56,491,58],[491,59,491,67],[490,56,490,58],[493,59,493,67],[492,59,492,67],[493,8,493,10],[492,23,492,31],[489,59,489,67],[490,8,490,10],[489,11,489,19],[485,56,485,58],[485,59,485,67],[486,8,486,10],[486,11,486,19],[486,20,486,22],[486,23,486,31],[486,44,486,46],[486,47,486,55],[486,56,486,58],[486,59,486,67],[487,8,487,10],[487,11,487,19],[487,20,487,22],[487,23,487,31],[487,44,487,46],[487,47,487,55],[487,59,487,67],[485,8,485,10],[485,11,485,19],[485,20,485,22],[485,23,485,31],[485,39,488,43],[488,59,488,67],[488,8,488,10],[488,11,488,19],[488,20,488,22],[488,23,488,31],[488,44,488,46],[488,47,488,55],[488,56,488,58],[481,3,484,7],[481,8,481,10],[481,11,481,19],[481,20,481,22],[481,23,481,31],[481,39,484,43],[481,44,481,46],[481,47,481,55],[481,56,481,58],[481,59,481,67],[482,8,482,10],[482,11,482,19],[482,20,482,22],[482,23,482,31],[482,44,482,46],[482,47,482,55],[482,56,482,58],[482,59,482,67],[483,8,483,10],[483,11,483,19],[483,20,483,22],[483,23,483,31],[483,44,483,46],[483,47,483,55],[483,56,483,58],[483,59,483,67],[484,8,484,10],[484,11,484,19],[484,20,484,31],[484,44,484,46],[484,47,484,55],[484,56,484,67],[478,3,480,7],[478,8,478,10],[478,11,478,19],[478,20,478,22],[478,23,478,31],[478,39,480,43],[478,44,478,46],[478,47,478,55],[478,56,478,58],[478,59,478,67],[479,8,479,10],[479,11,479,19],[479,20,479,22],[479,23,479,31],[479,44,479,46],[479,47,479,55],[479,56,479,58],[479,59,479,67],[480,8,480,10],[480,11,480,19],[480,20,480,22],[480,23,480,31],[480,44,480,46],[480,47,480,55],[480,56,480,58],[480,59,480,67],[474,44,474,46],[474,47,474,55],[474,56,474,58],[474,59,474,67],[475,8,475,10],[475,11,475,19],[475,20,475,22],[475,23,475,31],[475,44,475,46],[475,47,475,55],[475,56,475,58],[475,59,475,67],[476,8,476,10],[476,11,476,19],[476,20,476,22],[476,23,476,31],[476,39,477,43],[476,44,476,46],[476,47,476,55],[476,56,476,58],[476,59,476,67],[477,8,477,10],[477,11,477,19],[477,20,477,31],[477,44,477,46],[477,47,477,55],[477,56,477,67],[468,39,469,46],[468,47,469,51],[468,52,469,56],[468,57,469,61],[471,0,496,2],[471,3,475,7],[471,8,471,10],[471,11,471,19],[471,20,471,22],[471,23,471,31],[471,36,496,38],[471,39,475,43],[471,44,471,46],[471,47,471,55],[471,56,471,58],[471,59,471,67],[472,8,472,10],[472,11,472,19],[472,20,472,22],[472,23,472,31],[472,44,472,46],[472,47,472,55],[472,56,472,58],[472,59,472,67],[473,8,473,10],[473,11,473,19],[473,20,473,22],[473,23,473,31],[473,44,473,46],[473,47,473,55],[473,56,473,58],[473,59,473,67],[466,39,466,41],[466,42,466,45],[466,47,466,50],[466,52,466,55],[466,57,466,60],[466,62,466,65],[467,6,467,9],[467,11,467,14],[467,16,467,19],[467,21,467,24],[467,26,467,29],[467,39,467,41],[467,42,467,45],[467,47,467,50],[467,52,467,55],[467,57,467,60],[467,62,467,65],[458,39,458,41],[458,42,458,45],[458,47,458,50],[458,52,458,55],[459,3,459,5],[459,6,459,9],[459,11,459,14],[459,16,459,19],[459,39,459,41],[459,42,459,45],[459,47,459,50],[459,52,459,55],[463,0,467,2],[463,3,465,5],[463,6,465,10],[463,11,463,30],[463,36,467,38],[463,39,465,41],[463,42,465,46],[463,47,463,66],[464,11,465,15],[464,16,465,20],[464,21,464,30],[464,47,465,51],[464,52,465,56],[464,57,464,66],[465,21,465,25],[465,26,465,30],[465,57,465,61],[465,62,465,66],[466,3,466,5],[466,6,466,9],[453,47,453,50],[453,52,453,55],[453,57,453,60],[454,3,455,10],[454,11,455,15],[454,16,455,20],[454,21,455,25],[454,39,455,46],[454,47,455,51],[454,52,455,56],[454,57,455,61],[457,3,457,5],[457,6,457,10],[457,11,457,15],[457,16,457,20],[457,39,457,41],[457,42,457,46],[457,47,457,51],[457,52,457,56],[446,36,446,68],[447,0,447,32],[447,36,447,68],[451,0,459,2],[451,3,451,5],[451,6,451,10],[451,11,451,15],[451,16,451,20],[451,21,451,25],[451,36,459,38],[451,39,451,41],[451,42,451,46],[451,47,451,51],[451,52,451,56],[451,57,451,61],[452,3,452,5],[452,6,452,9],[452,11,452,14],[452,16,452,19],[452,21,452,24],[452,39,452,41],[452,42,452,45],[452,47,452,50],[452,52,452,55],[452,57,452,60],[453,3,453,5],[453,6,453,9],[453,11,453,14],[453,16,453,19],[453,21,453,24],[453,39,453,41],[453,42,453,45],[443,39,443,41],[443,42,443,44],[443,46,443,48],[443,50,443,52],[443,54,443,56],[443,58,443,60],[443,62,443,64],[444,0,444,32],[444,36,444,68],[445,0,445,32],[445,36,445,68],[440,0,443,2],[440,3,441,5],[440,6,441,9],[440,10,440,29],[440,36,443,38],[440,39,441,41],[440,42,441,45],[440,46,440,65],[441,10,441,13],[441,14,441,17],[441,18,441,21],[441,22,441,25],[441,26,441,29],[441,46,441,49],[441,50,441,53],[441,54,441,57],[441,58,441,61],[441,62,441,65],[442,3,442,5],[442,42,442,44],[442,46,442,48],[442,54,442,56],[442,58,442,60],[442,62,442,64],[436,6,436,14],[436,15,436,17],[436,18,436,25],[436,38,436,40],[436,41,436,50],[436,51,436,53],[436,54,436,63],[433,35,438,37],[433,38,433,40],[433,41,433,50],[433,51,433,53],[437,6,437,14],[437,15,437,17],[437,18,437,25],[434,51,434,53],[434,54,434,63],[435,38,435,40],[435,41,435,50],[435,51,435,53],[435,54,435,63],[438,38,438,40],[438,41,438,50],[438,51,438,53],[438,54,438,63],[432,51,432,53],[432,54,432,63],[437,3,437,5],[437,51,437,53],[437,54,437,63],[438,3,438,5],[438,6,438,14],[432,15,432,17],[432,18,432,25],[433,54,433,63],[434,3,434,5],[419,8,419,10],[419,11,419,19],[419,20,419,22],[419,23,419,31],[422,44,422,46],[422,47,422,55],[422,56,422,58],[422,59,422,67],[427,44,427,46],[427,47,427,55],[427,56,427,58],[427,59,427,67],[421,47,421,55],[425,44,425,46],[425,47,425,55],[425,56,425,58],[425,59,425,67],[426,11,426,19],[426,20,426,22],[426,23,426,31],[426,44,426,46],[399,11,400,15],[399,16,400,20],[399,21,400,25],[390,3,390,5],[390,6,390,9],[390,11,390,14],[435,3,435,5],[435,6,435,14],[435,15,435,17],[435,18,435,25],[252,18,252,24],[253,18,253,24],[254,18,254,24],[255,18,255,24],[256,18,256,24],[259,18,259,24],[260,18,260,24],[261,18,261,24],[262,18,262,24],[266,18,266,24],[267,18,267,24],[268,25,268,28],[269,25,269,28],[271,25,271,28],[265,17,265,24],[288,26,288,27],[420,3,427,7],[425,8,425,10],[425,11,425,19],[425,20,425,22],[425,23,425,31],[426,8,426,10],[251,29,251,32],[252,29,252,32],[253,29,253,32],[254,29,254,32],[255,29,255,32],[256,29,256,32],[258,29,258,32],[259,29,259,32],[260,29,260,32],[261,29,261,32],[262,29,262,32],[263,29,263,32],[266,29,266,32],[267,29,267,32],[261,25,261,28],[262,25,262,28],[263,25,263,28],[265,25,265,28],[266,25,266,28],[267,25,267,28],[288,29,288,30],[287,6,287,30],[288,11,288,12],[288,14,288,15],[288,17,288,18],[288,19,288,20],[288,23,288,24],[268,19,268,24],[269,18,269,24],[271,17,271,24],[261,9,261,12],[262,9,262,12],[263,9,263,12],[264,9,264,12],[265,9,265,12],[266,9,266,12],[267,9,267,12],[268,9,268,12],[271,13,271,16],[271,0,271,8],[271,9,271,12],[263,2,263,8],[264,1,264,8],[265,1,265,8],[266,2,266,8],[267,2,267,8],[268,2,268,8],[269,9,269,12],[270,9,270,12],[250,17,250,24],[258,17,258,24],[263,17,263,24],[250,25,250,28],[251,25,251,28],[252,25,252,28],[253,25,253,28],[254,25,254,28],[255,25,255,28],[256,25,256,28],[258,25,258,28],[259,25,259,28],[260,25,260,28],[255,1,255,8],[256,1,256,8],[257,1,257,8],[265,29,265,32],[250,9,250,12],[251,9,251,12],[252,9,252,12],[253,9,253,12],[254,9,254,12],[255,9,255,12],[256,9,256,12],[257,9,257,12],[258,9,258,12],[259,9,259,12],[260,9,260,12],[252,1,252,8],[253,1,253,8],[254,1,254,8],[262,2,262,8],[90,10,90,12],[91,10,91,12],[92,10,92,12],[251,17,256,17],[247,17,247,32],[190,1,206,31],[208,0,209,32],[269,2,269,8],[270,2,270,8],[250,13,250,16],[251,13,251,16],[252,13,252,16],[253,13,253,16],[254,13,254,16],[255,13,255,16],[256,13,256,16],[257,13,257,16],[258,13,258,16],[259,13,259,16],[260,13,260,16],[261,13,261,16],[262,13,262,16],[263,13,263,16],[264,13,264,16],[266,13,266,16],[267,13,267,16],[268,13,268,16],[269,13,269,16],[270,13,270,16],[265,13,265,16],[251,1,251,8],[250,0,250,8],[543,4,543,6],[543,7,543,18],[543,40,543,42],[543,43,543,54],[544,4,544,6],[544,7,544,18],[544,40,544,42],[544,43,544,54],[547,1,550,31],[547,37,550,67],[540,1,540,3],[540,4,540,13],[540,14,540,16],[540,17,540,30],[540,37,540,39],[540,40,540,49],[540,50,540,52],[540,53,540,66],[542,0,542,31],[542,36,542,67],[534,1,534,3],[534,4,534,14],[534,15,534,31],[534,37,534,39],[534,40,534,50],[534,51,534,67],[539,1,539,3],[539,4,539,13],[539,14,539,16],[539,17,539,23],[539,24,539,29],[539,37,539,39],[539,40,539,49],[539,50,539,52],[539,53,539,59],[539,60,539,65],[523,3,523,15],[523,39,523,51],[524,3,524,15],[524,39,524,51],[527,2,528,31],[527,38,528,67],[533,1,533,3],[533,4,533,14],[533,15,533,17],[533,18,533,31],[533,37,533,39],[533,40,533,50],[533,51,533,53],[533,54,533,67],[510,12,510,14],[510,47,510,49],[519,3,519,13],[519,39,519,49],[520,3,520,13],[520,39,520,49],[509,0,510,2],[509,12,509,14],[509,15,509,26],[509,27,509,29],[509,35,510,37],[509,47,509,49],[508,12,508,14],[508,15,508,26],[508,27,508,29],[508,47,508,49],[507,0,508,2],[507,12,507,14],[507,15,507,26],[507,27,507,29],[507,35,508,37],[507,47,507,49],[508,9,508,11],[509,9,509,11],[507,3,507,8],[508,3,508,8],[509,3,509,8],[508,38,508,43],[508,44,508,46],[509,30,509,32],[510,9,510,11],[507,30,507,32],[503,0,505,2],[502,12,502,14],[503,15,503,26],[502,27,502,29],[503,35,505,37],[503,47,503,49],[505,12,505,14],[505,15,505,26],[505,27,505,29],[505,47,505,49],[433,0,438,2],[433,3,433,5],[432,0,432,2],[432,3,432,5],[432,6,432,14],[437,38,437,40],[437,41,437,50],[434,6,434,14],[434,15,434,17],[434,18,434,25],[434,38,434,40],[434,41,434,50],[442,10,442,12],[442,14,442,16],[442,18,442,20],[442,22,442,24],[442,26,442,28],[442,39,442,41],[432,35,432,37],[432,38,432,40],[432,41,432,50],[442,50,442,52],[426,47,426,55],[426,56,426,58],[426,59,426,67],[423,8,423,10],[423,44,423,46],[427,8,427,10],[427,11,427,19],[427,20,427,22],[427,23,427,31],[419,59,419,67],[420,8,420,10],[420,11,420,19],[420,20,420,22],[420,23,420,31],[420,39,427,43],[420,44,420,46],[420,47,420,55],[420,56,420,58],[420,59,420,67],[421,8,421,10],[421,11,421,19],[421,20,421,22],[421,23,421,31],[421,44,421,46],[423,47,423,55],[423,56,423,58],[423,59,423,67],[424,8,424,10],[424,11,424,19],[424,20,424,22],[424,23,424,31],[424,44,424,46],[424,47,424,55],[424,56,424,58],[424,59,424,67],[421,56,421,58],[421,59,421,67],[422,8,422,10],[422,11,422,19],[422,20,422,22],[422,23,422,31],[418,44,418,46],[418,47,418,55],[418,56,418,58],[418,59,418,67],[414,59,414,67],[415,8,415,10],[415,11,415,19],[415,20,415,31],[415,44,415,46],[415,47,415,55],[415,56,415,67],[416,3,419,7],[416,8,416,10],[416,11,416,19],[416,20,416,22],[416,23,416,31],[416,39,419,43],[416,44,416,46],[416,47,416,55],[416,56,416,58],[416,59,416,67],[417,8,417,10],[417,11,417,19],[417,20,417,22],[417,23,417,31],[417,44,417,46],[417,47,417,55],[417,56,417,58],[417,59,417,67],[419,44,419,46],[419,47,419,55],[419,56,419,58],[412,59,412,67],[413,8,413,10],[413,11,413,19],[413,20,413,22],[413,23,413,31],[413,44,413,46],[413,47,413,55],[413,56,413,58],[413,59,413,67],[412,3,415,7],[412,8,412,10],[412,11,412,19],[412,20,412,22],[412,23,412,31],[412,39,415,43],[412,44,412,46],[412,47,412,55],[412,56,412,58],[414,8,414,10],[414,11,414,19],[414,20,414,22],[414,23,414,31],[414,44,414,46],[414,47,414,55],[414,56,414,58],[411,44,411,46],[411,47,411,55],[411,56,411,58],[411,59,411,67],[407,59,407,67],[408,8,408,10],[408,11,408,19],[408,20,408,31],[408,44,408,46],[408,47,408,55],[408,56,408,67],[409,3,411,7],[409,8,409,10],[409,11,409,19],[409,20,409,22],[409,23,409,31],[409,39,411,43],[409,44,409,46],[409,47,409,55],[409,56,409,58],[409,59,409,67],[410,8,410,10],[410,11,410,19],[410,20,410,22],[410,23,410,31],[410,44,410,46],[410,47,410,55],[411,11,411,19],[403,59,403,67],[404,8,404,10],[404,11,404,19],[404,20,404,22],[404,23,404,31],[404,44,404,46],[404,47,404,55],[404,56,404,58],[404,59,404,67],[410,56,410,58],[407,3,408,7],[407,8,407,10],[407,11,407,19],[407,20,407,22],[407,23,407,31],[407,39,408,43],[407,44,407,46],[407,47,407,55],[407,56,407,58],[405,8,405,10],[405,11,405,19],[405,20,405,22],[405,23,405,31],[405,44,405,46],[405,47,405,55],[405,56,405,58],[410,59,410,67],[399,39,400,46],[399,47,400,51],[399,52,400,56],[399,57,400,61],[402,0,427,2],[402,3,406,7],[402,8,402,10],[402,11,402,19],[402,20,402,22],[402,23,402,31],[402,36,427,38],[402,39,406,43],[402,44,402,46],[402,47,402,55],[402,56,402,58],[402,59,402,67],[403,8,403,10],[403,11,403,19],[403,20,403,22],[403,23,403,31],[405,59,405,67],[406,8,406,10],[406,11,406,19],[406,20,406,22],[406,23,406,31],[406,44,406,46],[406,47,406,55],[406,56,406,58],[406,59,406,67],[403,44,403,46],[403,47,403,55],[403,56,403,58],[397,11,397,14]],"merged_total":1930,"flags":["merged_cut"]}
["未収金（支払期日未入金）に関する調査票"]
[]
["１．全ての病院からご回答をお願いします。"]
[]
["２．未収金に関する調査票における用語の定義は以下の通りです。"]
[null,"〇医療費の定義"]
[null,"医療費とは、外来・入院に関わる医療費等の患者自己負担分において、以下の窓口負担金とします。"]
[null,"①外来・入院費用における診療報酬の自己負担分"]
[null,null,"（現役世代３割負担・後期高齢者１～３割負担、無保険者等１０割）",null,null,null,null,null,null,null,null,null,null,null,null,null,null,null,null,null,null,null,null,null,null,null,null,null,null,null,null,null,null,null,null,true]
[null,"②入院費用実費負担分（差額ベッド代、食費、おむつ代等）",null,null,null,null,null,null,null,null,null,null,null,null,null,null,null,null,null,null,null,null,null,null,null,null,null,null,null,null,null,null,null,null,null,true]
[null,"③レンタル費用（病衣、タオル等）　等"]
[null,"ただし、自賠責保険や政府労災保険で支払われるべき額は除きます。"]
[]
[null,"種類",null,null,null,null,null,null,null,null,"対象有無",null,null,"備考",null,null,null,null,null,null,null,null,null,null,null,null,null,null,null,null,null,null,null,null,null,true]
[]
[null,"窓口負担金\n（医療費自己負担分）",null,null,null,null,null,null,null,null,"○",null,null,"　入通院費\n差額ベッド代実費　等"]
[]
[null,"自賠責・政府労災に\n関わる未収金",null,null,null,null,null,null,null,null,"×",null,null,"各種機関への請求により\n回収できるため対象外"]
[]
[]
[null,"○未収金の定義"]
[null,"未収金とは、患者が支払う医療費のうち、医療費等が支払われるべき期日までに支払われなかった\n金額。初回支払期日までに支払わなかった額を発生月ベースで合計したもの。"]
[]
[]
[null,"なお分割払い債権については、以下の通りとする。"]
[null,"①本来の支払期限到来後に分割払いに応じた場合は、本来の支払期限までに支払わなかった全額\n(分割払いの期限ではない）\n"]
[]
[null,"②長期入院の支払いなど、入院期間中に一定日までの入院費の支払いを行う分割払いを行っている場合は、分割払いの支払い期限までに支払われなかった金額"]
[]
[null,null,null,null,null,null,null,null,null,null,null,null,null,null,null,null,null,null,null,null,null,null,null,null,null,null,null,null,null,null,null,null,null,null,false]
[null,null,null,null,null,null,null,null,null,null,null,null,null,null,null,null,null,null,null,null,null,null,null,null,null,null,null,null,null,null,null,null,null,null,false]
[null,null,null,null,null,null,null,null,null,null,null,null,null,null,null,null,null,null,null,null,null,null,null,null,null,null,null,null,null,null,null,null,null,null,false]
[]
[]
[]
[]
[null,"○未収金の分類"]
[null,"今回の調査対象となる未収金は下記の「２」です"]
[]
[null,"分類",null,"説明"]
[null,1,null,"保険者負担の未収金（保険者とは、社会保険、国民健康保険や共済等）"]
[null,2,null,"患者負担の窓口未収金"]
[null,3,null,"医業外未収金（国県補助金収入などのこと）"]
[null,4,null,"クレジット未収金",null,null,null,null,null,null,null,null,null,null,null,null,null,null,null,null,null,null,null,null,null,null,null,null,null,null,null,null,null,null,true]
[null,null,null,null,null,null,null,null,null,null,null,null,null,null,null,null,null,null,null,null,null,null,null,null,null,null,null,null,null,null,null,null,null,null,false]
[null,"〇訪日外国人の定義",null,null,null,null,null,null,null,null,null,null,null,null,null,null,null,null,null,null,null,null,null,null,null,null,null,null,null,null,null,null,null,null,false]
[null,"本調査における訪日外国人とは、観光やビジネス等の目的で来日し、不慮のケガや病気で貴院を受診した外国人で、日本の公的医療保険に加入していない者とする（医療目的で来日した外国人を除く。）。"]
[]
[]
["問１（１）貴病院の開設者を選択して下さい。（該当するもの1つに〇）",null,null,null,null,null,null,null,null,null,null,null,null,null,null,null,null,null,null,null,null,null,null,null,null,null,null,null,null,null,null,null,null,null,"問１（１）貴病院の開設者を選択して下さい。（該当するもの1つに〇）"]
[null,"※「病院報告」で提出している開設者をご記入下さい。",null,null,null,null,null,null,null,null,null,null,null,null,null,null,null,null,null,null,null,null,null,null,null,null,null,null,null,null,null,null,null,null,null,"※「病院報告」で提出している開設者をご記入下さい。"]
[null,null,null,null,null,null,"01.厚生労働省",null,null,null,null,null,null,null,null,null,null,null,null,"15.国民健康保険団体連合会",null,null,null,null,null,null,null,null,null,null,null,null,null,null,null,null,null,{"$f":"IF($AI$52=VALUE(LEFT(AO52,2)),1,\"\")","v":""},null,null,"01.厚生労働省",null,null,null,null,null,null,null,null,null,{"$f":"IF($AI$52=VALUE(LEFT(BB52,2)),1,\"\")","v":""},null,null,"15.国民健康保険団体連合会"]
[null,null,null,null,null,null,"02.独立行政法人国立病院機構",null,null,null,null,null,null,null,null,null,null,null,null,"16.健康保険組合及びその連合会",null,null,null,null,null,null,null,null,null,null,null,null,null,null,null,null,null,{"$f":"IF($AI$52=VALUE(LEFT(AO53,2)),1,\"\")","v":""},null,null,"02.独立行政法人国立病院機構",null,null,null,null,null,null,null,null,null,{"$f":"IF($AI$52=VALUE(LEFT(BB53,2)),1,\"\")","v":""},null,null,"16.健康保険組合及びその連合会"]
[null,null,null,null,null,null,"03.国立大学法人",null,null,null,null,null,null,null,null,null,null,null,null,"17.共済組合及びその連合会",null,null,null,null,null,null,null,null,null,null,null,null,null,null,null,null,null,"",null,null,"03.国立大学法人",null,null,null,null,null,null,null,null,null,"",null,null,"17.共済組合及びその連合会"]
[null,null,null,null,null,null,"04.独立行政法人労働者安全機構",null,null,null,null,null,null,null,null,null,null,null,null,"18.国民健康保険組合",null,null,null,null,null,null,null,null,null,null,null,null,null,null,null,null,null,"",null,null,"04.独立行政法人労働者安全機構",null,null,null,null,null,null,null,null,null,"",null,null,"18.国民健康保険組合"]
[null,null,null,null,null,null,"05.国立高度専門医療研究センター",null,null,null,null,null,null,null,null,null,null,null,null,"19.公益法人",null,null,null,null,null,null,null,null,null,null,null,null,null,null,null,null,null,"",null,null,"05.国立高度専門医療研究センター",null,null,null,null,null,null,null,null,null,"",null,null,"19.公益法人"]
[null,null,null,null,null,null,"06.独立行政法人地域医療機能推進機構",null,null,null,null,null,null,null,null,null,null,null,null,"20.医療法人　⇒問１(2)へ",null,null,null,null,null,null,null,null,null,null,null,null,null,null,null,null,null,"",null,null,"06.独立行政法人地域医療機能推進機構",null,null,null,null,null,null,null,null,null,"",null,null,"20.医療法人　⇒問１(2)へ"]
[null,null,null,null,null,null,"07.その他の国の機関",null,null,null,null,null,null,null,null,null,null,null,null,"21.私立学校法人",null,null,null,null,null,null,null,null,null,null,null,null,null,null,null,null,null,"",null,null,"07.その他の国の機関",null,null,null,null,null,null,null,null,null,"",null,null,"21.私立学校法人"]
[null,null,null,null,null,null,"08.都道府県",null,null,null,null,null,null,null,null,null,null,null,null,"22.社会福祉法人",null,null,null,null,null,null,null,null,null,null,null,null,null,null,null,null,null,"",null,null,"08.都道府県",null,null,null,null,null,null,null,null,null,"",null,null,"22.社会福祉法人"]
[null,null,null,null,null,null,"09.市町村",null,null,null,null,null,null,null,null,null,null,null,null,"23.医療生協",null,null,null,null,null,null,null,null,null,null,null,null,null,null,null,null,null,"",null,null,"09.市町村",null,null,null,null,null,null,null,null,null,"",null,null,"23.医療生協"]
[null,null,null,null,null,null,"10.地方独立行政法人",null,null,null,null,null,null,null,null,null,null,null,null,"24.会社",null,null,null,null,null,null,null,null,null,null,null,null,null,null,null,null,null,"",null,null,"10.地方独立行政法人",null,null,null,null,null,null,null,null,null,"",null,null,"24.会社"]
[null,null,null,null,null,null,"11.日本赤十字社",null,null,null,null,null,null,null,null,null,null,null,null,"25.その他の法人",null,null,null,null,null,null,null,null,null,null,null,null,null,null,null,null,null,"",null,null,"11.日本赤十字社",null,null,null,null,null,null,null,null,null,{"$f":"IF($AI$52=VALUE(LEFT(BB62,2)),1,\"\")","v":""},null,null,"25.その他の法人"]
[null,null,null,null,null,null,"12.社会福祉法人恩賜財団済生会",null,null,null,null,null,null,null,null,null,null,null,null,"（",null,null,null,null,null,null,null,null,"）",null,null,null,null,null,null,null,null,"",null,null,"12.社会福祉法人恩賜財団済生会",null,null,null,null,null,null,null,null,null,null,null,null,"（",{"$f":"IF(AY62=1,U63,\"\")","v":""},null,null,null,null,null,null,null,"）"]
[null,null,null,null,null,null,"13.北海道社会事業協会",null,null,null,null,null,null,null,null,null,null,null,null,"26.個人",null,null,null,null,null,null,null,null,null,null,null,null,null,null,null,null,null,"",null,null,"13.北海道社会事業協会",null,null,null,null,null,null,null,null,null,{"$f":"IF($AI$52=VALUE(LEFT(BB64,2)),1,\"\")","v":""},null,null,"26.個人"]
[null,null,null,null,null,null,"14.厚生（医療）農業協同組合連合会",null,null,null,null,null,null,null,null,null,null,null,null,null,null,null,null,null,null,null,null,null,null,null,null,null,null,null,null,null,null,"",null,null,"14.厚生（医療）農業協同組合連合会"]
[null,null,null,null,null,null,null,null,null,null,null,null,null,null,null,null,null,null,null,null,null,null,null,null,null,null,null,null,null,null,null,null,null,null,{"$f":"IF(SUM(AL57,AL59:AN65,AY53:BA55,AY57)=1,1,\"\")","v":""}]
[null,null,null,"本票、財務票、概況票の全てにご回答ください。",null,null,null,null,null,null,null,null,null,null,null,null,null,null,null,null,null,null,null,null,null,null,null,null,null,null,null,null,null,null,null,null,null,"本票、財務票、概況票の全てにご回答ください。"]
["　注　開設者が「独立行政法人地域医療機能推進機構」「都道府県」「市町村」「地方独立行政法人」「日本赤十字社」「社会福祉法人恩賜財団済生会」「北海道社会事業協会」「厚生（医療）農業協同組合連合会」「健康保険組合及びその連合会」「共済組合及びその連合会」「国民健康保険組合」「医療法人」に該当する場合は、本票と併せ、６ページ以降の財務票、概況票にもご回答をお願いします。\nそれ以外の場合は、本票のみ（問１０まで）ご回答ください。",null,null,null,null,null,null,null,null,null,null,null,null,null,null,null,null,null,null,null,null,null,null,null,null,null,null,null,null,null,null,null,null,null,"　注　開設者が「独立行政法人地域医療機能推進機構」「都道府県」「市町村」「地方独立行政法人」「日本赤十字社」「社会福祉法人恩賜財団済生会」「北海道社会事業協会」「厚生（医療）農業協同組合連合会」「健康保険組合及びその連合会」「共済組合及びその連合会」「国民健康保険組合」「医療法人」に該当する場合は、本票と併せ、５ページ以降の財務票、概況票にもご回答をお願いします。\nそれ以外の場合は、本票のみ（問９まで）ご回答ください。"]
[]
[]
[]
[null,null,null,null,null,null,null,null,null,null,null,null,null,null,null,null,null,null,null,null,null,null,null,null,null,null,null,null,null,null,null,null,null,{"$f":"IF(OR(AI52=\"\",AI52=20),1,\"\")","v":1}]
["問１（２）開設者が医療法人の場合、種別についてご回答ください。",null,null,null,null,null,null,null,null,null,null,null,null,null,null,null,null,null,null,null,null,null,null,null,null,null,null,null,null,null,null,null,null,null,"問１（２）開設者が医療法人の場合、種別についてご回答ください。"]
[null,null,"①種別１",null,null,null,null,null,null,null,null,null,null,null,null,"②種別２",null,null,null,null,null,null,null,null,null,null,null,null,null,null,null,null,null,null,null,null,"①種別１",null,null,null,null,null,null,null,null,null,null,null,null,"②種別２"]
[null,null,null,null,null,"01.財団",null,null,null,null,null,null,null,null,null,null,null,null,"01.社会医療法人",null,null,null,null,null,null,null,null,null,null,null,null,null,null,null,null,null,{"$f":"IF($AI$74=VALUE(LEFT(AN75,2)),1,\"\")","v":""},null,null,"01.財団",null,null,null,null,null,null,null,null,null,{"$f":"IF($AJ$74=VALUE(LEFT(BA75,2)),1,\"\")","v":""},null,null,"01.社会医療法人"]
[null,null,null,null,null,"02.社団（持分あり）",null,null,null,null,null,null,null,null,null,null,null,null,"02.特定医療法人",null,null,null,null,null,null,null,null,null,null,null,null,null,null,null,null,null,{"$f":"IF($AI$74=VALUE(LEFT(AN76,2)),1,\"\")","v":""},null,null,"02.社団（持分あり）",null,null,null,null,null,null,null,null,null,{"$f":"IF($AJ$74=VALUE(LEFT(BA76,2)),1,\"\")","v":""},null,null,"02.特定医療法人"]
[null,null,null,null,null,"03.社団（持分なし）",null,null,null,null,null,null,null,null,null,null,null,null,"03.出資額限度法人",null,null,null,null,null,null,null,null,null,null,null,null,null,null,null,null,null,"",null,null,"03.社団（持分なし）",null,null,null,null,null,null,null,null,null,"",null,null,"03.出資額限度法人"]
[null,null,null,null,null,null,null,null,null,null,null,null,null,null,null,null,null,null,"04.基金拠出型医療法人",null,null,null,null,null,null,null,null,null,null,null,null,null,null,null,null,null,null,null,null,null,null,null,null,null,null,null,null,null,null,"",null,null,"04.基金拠出型医療法人"]
[null,null,null,null,null,null,null,null,null,null,null,null,null,null,null,null,null,null,"05.その他の医療法人",null,null,null,null,null,null,null,null,null,null,null,null,null,null,null,null,null,null,null,null,null,null,null,null,null,null,null,null,null,null,"",null,null,"05.その他の医療法人"]
[]
["問２　許可病床数を数値でご記入下さい。（令和4年1月末時点）",null,null,null,null,null,null,null,null,null,null,null,null,null,null,null,null,null,null,null,null,null,null,null,null,null,null,null,null,null,null,null,null,null,"問２　許可病床数を数値でご記入下さい。"]
[null,null,null,null,null,null,"床",null,null,null,null,null,null,null,null,null,null,null,null,null,null,null,null,null,null,null,null,null,null,null,null,null,null,null,null,null,{"$f":"IF(C82=\"\",\"\",C82)","v":""},null,null,null,"床"]
[]
["貴病院の患者全体に関してお聞きします。",null,null,null,null,null,null,null,null,null,null,null,null,null,null,null,null,null,null,null,null,null,null,null,null,null,null,null,null,null,null,null,null,null,"貴病院の患者全体に関してお聞きします。"]
[]
["問３． 患者数の状況（令和元年度及び令和２年度決算期末時点）",null,null,null,null,null,null,null,null,null,null,null,null,null,null,null,null,null,null,null,null,null,null,null,null,null,null,null,null,null,null,null,null,null,"問３． 患者数の状況（平成３０年度決算期末時点）"]
["患者数の状況（年間合計）をご記入下さい。数値を把握していない項目は空欄として下さい。",null,null,null,null,null,null,null,null,null,null,null,null,null,null,null,null,null,null,null,null,null,null,null,null,null,null,null,null,null,null,null,null,null,"患者数の状況（年間合計）をご記入下さい。数値を把握していない項目は空欄として下さい。"]
["※「病院報告」で提出している数値をご記入下さい。",null,null,null,null,null,null,null,null,null,null,null,null,null,null,null,null,null,null,null,null,null,null,null,null,null,null,null,null,null,null,null,null,null,null,"※「病院報告」で提出している数値をご記入下さい。"]
["項目",null,null,null,null,null,null,null,null,null,"患者数（人）",null,null,null,null,null,"備考",null,null,null,null,null,null,null,null,null,null,null,null,null,null,null,null,null,"項目",null,null,null,null,null,null,null,null,null,null,null,"患者数",null,null,null,"備考"]
[null,null,null,null,null,null,null,null,null,null,"令和元年度",null,null,"令和２年度"]
["①在院患者延数（年間）",null,null,null,null,null,null,null,null,null,null,null,null,null,null,null,"24時現在、病院に在院している患者数",null,null,null,null,null,null,null,null,null,null,null,null,null,null,null,null,null,"①在院患者延数（年間）",null,null,null,null,null,null,null,null,null,null,null,{"$f":"IF(N91=\"\",\"\",N91)","v":""},null,null,"人","24時現在、病院に在院している患者数"]
["②新入院患者数（年間）",null,null,null,null,null,null,null,null,null,null,null,null,null,null,null,"その日のうちに退院した患者も含む。",null,null,null,null,null,null,null,null,null,null,null,null,null,null,null,null,null,"②新入院患者数（年間）",null,null,null,null,null,null,null,null,null,null,null,"",null,null,"人","その日のうちに退院した患者も含む。"]
["③退院患者数（年間）",null,null,null,null,null,null,null,null,null,null,null,null,null,null,null,"入院してその日のうちに退院した患者も含む。",null,null,null,null,null,null,null,null,null,null,null,null,null,null,null,null,null,"③退院患者数（年間）",null,null,null,null,null,null,null,null,null,null,null,"",null,null,"人","入院してその日のうちに退院した患者も含む。"]
["④外来患者延数",null,null,null,null,null,null,null,null,null,null,null,null,null,null,null,null,null,null,null,null,null,null,null,null,null,null,null,null,null,null,null,null,null,"④外来患者延数",null,null,null,null,null,null,null,null,null,null,null,"",null,null,"人"]
["⑤訪問診療・往診患者延数（年間）",null,null,null,null,null,null,null,null,null,null,null,null,null,null,null,"診療報酬算定患者に限る。",null,null,null,null,null,null,null,null,null,null,null,null,null,null,null,null,null,"⑤訪問診療・往診患者延数（年間）",null,null,null,null,null,null,null,null,null,null,null,"",null,null,"人","診療報酬算定患者に限る。"]
["⑥時間内救急対応患者数（年間）",null,null,null,null,null,null,null,null,null,null,null,null,null,null,null,"救急車両等により搬送され受け入れた患者数に加え、それ以外の方法で診療時間内に来院した患者数",null,null,null,null,null,null,null,null,null,null,null,null,null,null,null,null,null,"⑥時間内救急対応患者数（年間）",null,null,null,null,null,null,null,null,null,null,null,"",null,null,"人","救急車両等により搬送され受け入れた患者数に加え、それ以外の方法で診療時間内に来院した患者数"]
[null,"うち、初診患者数",null,null,null,null,null,null,null,null,null,null,null,null,null,null,null,null,null,null,null,null,null,null,null,null,null,null,null,null,null,null,null,null,null,"うち、初診患者数",null,null,null,null,null,null,null,null,null,null,"",null,null,"人"]
["⑦時間外救急対応患者数（年間）",null,null,null,null,null,null,null,null,null,null,null,null,null,null,null,"救急車両等により搬送され受け入れた患者数に加え、それ以外の方法で時間外※1・休日・夜間※2に来院した患者数",null,null,null,null,null,null,null,null,null,null,null,null,null,null,null,null,null,"⑦時間外救急対応患者数（年間）",null,null,null,null,null,null,null,null,null,null,null,"",null,null,"人","救急車両等により搬送され受け入れた患者数に加え、それ以外の方法で時間外※1・休日・夜間※2に来院した患者数"]
[null,"うち、初診患者数",null,null,null,null,null,null,null,null,null,null,null,null,null,null,null,null,null,null,null,null,null,null,null,null,null,null,null,null,null,null,null,null,null,"うち、初診患者数",null,null,null,null,null,null,null,null,null,null,"",null,null,"人"]
["⑧初診患者数（年間）",null,null,null,null,null,null,null,null,null,null,null,null,null,null,null,"初診料を算定した患者数",null,null,null,null,null,null,null,null,null,null,null,null,null,null,null,null,null,"⑧初診患者数（年間）",null,null,null,null,null,null,null,null,null,null,null,"",null,null,"人","初診料を算定した患者数"]
["⑨紹介患者数（年間）",null,null,null,null,null,null,null,null,null,null,null,null,null,null,null,"他の医療機関より紹介状を持参して来院した患者数",null,null,null,null,null,null,null,null,null,null,null,null,null,null,null,null,null,"⑨紹介患者数（年間）",null,null,null,null,null,null,null,null,null,null,null,"",null,null,"人","他の医療機関より紹介状を持参して来院した患者数"]
["⑩逆紹介患者数（年間）",null,null,null,null,null,null,null,null,null,null,null,null,null,null,null,"他の医療機関に紹介し、診療情報提供料を算定した患者数",null,null,null,null,null,null,null,null,null,null,null,null,null,null,null,null,null,"⑩逆紹介患者数（年間）",null,null,null,null,null,null,null,null,null,null,null,"",null,null,"人","他の医療機関に紹介し、診療情報提供料を算定した患者数"]
["⑪全身麻酔手術患者数（年間）",null,null,null,null,null,null,null,null,null,null,null,null,null,null,null,null,null,null,null,null,null,null,null,null,null,null,null,null,null,null,null,null,null,"⑪全身麻酔手術患者数（年間）",null,null,null,null,null,null,null,null,null,null,null,"",null,null,"人"]
["※1：診療時間以外の時間（休日及び深夜（午後10時から翌日の午前6時まで））",null,null,null,null,null,null,null,null,null,null,null,null,null,null,null,null,null,null,null,null,null,null,null,null,null,null,null,null,null,null,null,null,null,"※1：診療時間以外の時間（休日及び深夜（午後10時から翌日の午前6時まで））"]
["※2：午後6時から翌日午前8時までをいいます。",null,null,null,null,null,null,null,null,null,null,null,null,null,null,null,null,null,null,null,null,null,null,null,null,null,null,null,null,null,null,null,null,null,"※2：午後6時から翌日午前8時までをいいます。"]
[]
["問４　新型コロナウイルス感染症に関する以下の設問にお答えください。",null,null,null,null,null,null,null,null,null,null,null,null,null,null,null,null,null,null,null,null,null,null,null,null,null,null,null,null,null,null,null,null,null,"問４　新型コロナウイルス感染症に関する以下の設問にお答えください。"]
["　問４－１　新型コロナウイルス感染症に関する重点医療機関・協力医療機関の指定状況について以下から選択してください。",null,null,null,null,null,null,null,null,null,null,null,null,null,null,null,null,null,null,null,null,null,null,null,null,null,null,null,null,null,null,null,null,null,"　問４－１　新型コロナウイルス感染症に関する重点医療機関・協力医療機関の指定状況について以下から選択してください。"]
[null,null,"（令和３年３月３１日現在、複数該当する場合は小さい番号を選んで記入してください。）",null,null,null,null,null,null,null,null,null,null,null,null,null,null,null,null,null,null,null,null,null,null,null,null,null,null,null,null,null,null,null,null,null,"（令和３年３月３１日現在、複数該当する場合は小さい番号を選んで記入してください。）"]
[null,null,null,null,"１　重点医療機関（新型コロナウイルス感染症患者専用の病院や病棟を設定する医療機関）として都道府県から指定されている",null,null,null,null,null,null,null,null,null,null,null,null,null,null,null,null,null,null,null,null,null,null,null,null,null,null,null,null,null,false,{"$f":"IF(AI110=TRUE,1,\"\")","v":""},null,null,"１　重点医療機関（新型コロナウイルス感染症患者専用の病院や病棟を設定する医療機関）として都道府県から指定されている"]
[null,null,null,null,"２　協力医療機関（新型コロナウイルス感染症疑い患者専用の個室病床を設定する医療機関）として都道府県から指定されている",null,null,null,null,null,null,null,null,null,null,null,null,null,null,null,null,null,null,null,null,null,null,null,null,null,null,null,null,null,false,{"$f":"IF(AI111=TRUE,1,\"\")","v":""},null,null,"２　協力医療機関（新型コロナウイルス感染症疑い患者専用の個室病床を設定する医療機関）として都道府県から指定されている"]
[null,null,null,null,"３　新型コロナウイルス感染症患者・疑い患者の受入病床を割り当てられたその他の医療機関",null,null,null,null,null,null,null,null,null,null,null,null,null,null,null,null,null,null,null,null,null,null,null,null,null,null,null,null,null,false,"",null,null,"３　新型コロナウイルス感染症患者・疑い患者の受入病床を割り当てられたその他の医療機関"]
[null,null,null,null,"４　新型コロナウイルス感染症患者・疑い患者の受入病床を割り当てられていない",null,null,null,null,null,null,null,null,null,null,null,null,null,null,null,null,null,null,null,null,null,null,null,null,null,null,null,null,null,false,"",null,null,"４　新型コロナウイルス感染症患者・疑い患者の受入病床を割り当てられていない"]
[]
["　問４－２　これまでの新型コロナウイルス感染症入院患者等の受入実績",null,null,null,null,null,null,null,null,null,null,null,null,null,null,null,null,null,null,null,null,null,null,null,null,null,null,null,null,null,null,null,null,null,"　問４－２　これまでの新型コロナウイルス感染症入院患者等の受入実績"]
[null,null,"（令和３年３月３１日現在、複数該当する場合は小さい番号を選んで記入してください。）",null,null,null,null,null,null,null,null,null,null,null,null,null,null,null,null,null,null,null,null,null,null,null,null,null,null,null,null,null,null,null,null,null,"（令和３年３月３１日現在、複数該当する場合は小さい番号を選んで記入してください。）"]
[null,null,null,null,"１　新型コロナウイルス感染症の入院患者（含む疑似症患者）の受け入れ実績あり ",null,null,null,null,null,null,null,null,null,null,null,null,null,null,null,null,null,null,null,null,null,null,null,null,null,null,null,null,null,false,{"$f":"IF(AI117=TRUE,1,\"\")","v":""},null,null,"１　新型コロナウイルス感染症の入院患者（含む疑似症患者）の受け入れ実績あり "]
[null,null,null,null,"２　新型コロナウイルス感染症から回復した患者を転院により受け入れた実績あり",null,null,null,null,null,null,null,null,null,null,null,null,null,null,null,null,null,null,null,null,null,null,null,null,null,null,null,null,null,false,"",null,null,"２　新型コロナウイルス感染症から回復した患者を転院により受け入れた実績あり"]
[null,null,null,null,"３　新型コロナウイルス感染症患者の対応をしている医療機関から、新型コロナウイルス感染症ではない患者を\n　　転院により受け入れた実績あり",null,null,null,null,null,null,null,null,null,null,null,null,null,null,null,null,null,null,null,null,null,null,null,null,null,null,null,null,null,false,"",null,null,"３　新型コロナウイルス感染症患者の対応をしている医療機関から、新型コロナウイルス感染症ではない患者を\n　　転院により受け入れた実績あり"]
[null,null,null,null,"４　上記の1、２、３のいずれでもない",null,null,null,null,null,null,null,null,null,null,null,null,null,null,null,null,null,null,null,null,null,null,null,null,null,null,null,null,null,false,"",null,null,"４　上記の1、２、３のいずれでもない"]
[]
["　問４－３　これまでの新型コロナウイルス感染症の院内感染（クラスターの発生を含む）の有無",null,null,null,null,null,null,null,null,null,null,null,null,null,null,null,null,null,null,null,null,null,null,null,null,null,null,null,null,null,null,null,null,null,"　問４－３　これまでの新型コロナウイルス感染症の院内感染（クラスターの発生を含む）の有無"]
[null,null,"（令和3年3月31日現在、該当する番号を記入してください。）",null,null,null,null,null,null,null,null,null,null,null,null,null,null,null,null,null,null,null,null,null,null,null,null,null,null,null,null,null,null,null,null,null,"（令和3年3月31日現在、該当する番号を記入してください。）"]
[null,null,null,null,"１　有り",null,null,null,null,null,null,null,null,null,null,null,null,null,null,null,null,null,null,null,null,null,null,null,null,null,null,null,null,null,false,{"$f":"IF(AI124=TRUE,1,\"\")","v":""},null,null,"１　有り"]
[null,null,null,null,"２　無し",null,null,null,null,null,null,null,null,null,null,null,null,null,null,null,null,null,null,null,null,null,null,null,null,null,null,null,null,null,false,{"$f":"IF(AI125=TRUE,1,\"\")","v":""},null,null,"２　無し"]
[]
["問５．令和３年１０月と１１月の各月における収入・実患者数をご記入ください。",null,null,null,null,null,null,null,null,null,null,null,null,null,null,null,null,null,null,null,null,null,null,null,null,null,null,null,null,null,null,null,null,null,"問５．令和元年１０月と１１月の各月における収入・実患者数をご記入ください。"]
["　※収入とは患者に対して窓口負担金を請求した金額（未収金も含む）とし、医業外収入を除きます。",null,null,null,null,null,null,null,null,null,null,null,null,null,null,null,null,null,null,null,null,null,null,null,null,null,null,null,null,null,null,null,null,null,"　※収入とは純粋な診療報酬に関わる医療費を請求した金額（未収金も含む）とし、医業外収入を除きます。"]
["時期",null,null,null,null,null,null,"①収入",null,null,null,null,null,null,null,"②実患者数",null,null,null,null,null,null,null,null,null,null,null,null,null,null,null,null,null,null,"時期",null,null,null,null,null,null,"①収入",null,null,null,null,null,null,null,"②実患者数"]
["令和３年１０月単月",null,null,null,null,null,null,null,null,null,null,null,null,"千円",null,null,null,null,null,null,null,"人",null,null,null,null,null,null,null,null,null,null,null,null,"令和元年１０月単月",null,null,null,null,null,null,{"$f":"IF(H130=\"\",\"\",H130)","v":""},null,null,null,null,null,"千円",null,{"$f":"IF(P130=\"\",\"\",P130)","v":""},null,null,null,null,null,"人"]
[null,"うち外来患者",null,null,null,null,null,null,null,null,null,null,null,"千円",null,null,null,null,null,null,null,"人",null,null,null,null,null,null,null,null,null,null,null,null,null,"うち外来患者",null,null,null,null,null,{"$f":"IF(H131=\"\",\"\",H131)","v":""},null,null,null,null,null,"千円",null,"",null,null,null,null,null,"人"]
[null,"うち入院患者",null,null,null,null,null,null,null,null,null,null,null,"千円",null,null,null,null,null,null,null,"人",null,null,null,null,null,null,null,null,null,null,null,null,null,"うち入院患者",null,null,null,null,null,"",null,null,null,null,null,"千円",null,"",null,null,null,null,null,"人"]
[null,"（再掲）救急対応患者",null,null,null,null,null,null,null,null,null,null,null,"千円",null,null,null,null,null,null,null,"人",null,null,null,null,null,null,null,null,null,null,null,null,null,"（再掲）救急対応患者",null,null,null,null,null,"",null,null,null,null,null,"千円",null,"",null,null,null,null,null,"人"]
["令和３年１１月単月",null,null,null,null,null,null,null,null,null,null,null,null,"千円",null,null,null,null,null,null,null,"人",null,null,null,null,null,null,null,null,null,null,null,null,"令和元年１１月単月",null,null,null,null,null,null,"",null,null,null,null,null,"千円",null,"",null,null,null,null,null,"人"]
[null,"うち外来患者",null,null,null,null,null,null,null,null,null,null,null,"千円",null,null,null,null,null,null,null,"人",null,null,null,null,null,null,null,null,null,null,null,null,null,"うち外来患者",null,null,null,null,null,"",null,null,null,null,null,"千円",null,"",null,null,null,null,null,"人"]
[null,"うち入院患者",null,null,null,null,null,null,null,null,null,null,null,"千円",null,null,null,null,null,null,null,"人",null,null,null,null,null,null,null,null,null,null,null,null,null,1,null,null,null,null,null,"",null,null,null,null,null,"千円",null,"",null,null,null,null,null,"人"]
[null,"（再掲）救急対応患者",null,null,null,null,null,null,null,null,null,null,null,"千円",null,null,null,null,null,null,null,"人",null,null,null,null,null,null,null,null,null,null,null,null,null,"（再掲）救急対応患者",null,null,null,null,null,"",null,null,null,null,null,"千円",null,{"$f":"IF(P137=\"\",\"\",P137)","v":""},null,null,null,null,null,"人"]
[]
["問６．令和３年１０月と１１月の各月における未収金の額（千円単位）及び未収患者数をご記入ください。",null,null,null,null,null,null,null,null,null,null,null,null,null,null,null,null,null,null,null,null,null,null,null,null,null,null,null,null,null,null,null,null,null,"問５．令和元年１０月と１１月の各月における未収金の額（千円単位）及び未収患者数をご記入ください。"]
["時期",null,null,null,null,null,null,"①未収金額",null,null,null,null,null,null,null,"②未収金額に対応する患者数",null,null,null,null,null,null,null,null,null,null,null,null,null,null,null,null,null,null,"時期",1,null,null,null,null,null,"①未収金額",null,null,null,null,null,null,null,"②未収金額に対応する患者数"]
["令和３年１０月単月",null,null,null,null,null,null,null,null,null,null,null,null,"千円",null,null,null,null,null,null,null,"人",null,null,null,null,null,null,null,null,null,null,null,null,"令和元年１０月単月",null,null,null,null,null,null,{"$f":"IF(H141=\"\",\"\",H141)","v":""},null,null,null,null,null,"千円",null,{"$f":"IF(P141=\"\",\"\",P141)","v":""},null,null,null,null,null,"人"]
[null,"うち外来患者",null,null,null,null,null,null,null,null,null,null,null,"千円",null,null,null,null,null,null,null,"人",null,null,null,null,null,null,null,null,null,null,null,null,null,"うち外来患者",null,null,null,null,null,{"$f":"IF(H142=\"\",\"\",H142)","v":""},null,null,null,null,null,"千円",null,"",null,null,null,null,null,"人"]
[null,"うち入院患者",null,null,null,null,null,null,null,null,null,null,null,"千円",null,null,null,null,null,null,null,"人",null,null,null,null,null,null,null,null,null,null,null,null,null,"うち入院患者",null,null,null,null,null,"",null,null,null,null,null,"千円",null,"",null,null,null,null,null,"人"]
[null,"（再掲）救急対応患者",null,null,null,null,null,null,null,null,null,null,null,"千円",null,null,null,null,null,null,null,"人",null,null,null,null,null,null,null,null,null,null,null,null,null,"（再掲）救急対応患者",null,null,null,null,null,"",null,null,null,null,null,"千円",null,"",null,null,null,null,null,"人"]
["令和３年１１月単月",null,null,null,null,null,null,null,null,null,null,null,null,"千円",null,null,null,null,null,null,null,"人",null,null,null,null,null,null,null,null,null,null,null,null,"令和元年１１月単月",null,null,null,null,null,null,"",null,null,null,null,null,"千円",null,"",null,null,null,null,null,"人"]
[null,"うち外来患者",null,null,null,null,null,null,null,null,null,null,null,"千円",null,null,null,null,null,null,null,"人",null,null,null,null,null,null,null,null,null,null,null,null,null,"うち外来患者",null,null,null,null,null,"",null,null,null,null,null,"千円",null,"",null,null,null,null,null,"人"]
[null,"うち入院患者",null,null,null,null,null,null,null,null,null,null,null,"千円",null,null,null,null,null,null,null,"人",null,null,null,null,null,null,null,null,null,null,null,null,null,"うち入院患者",null,null,null,null,null,"",null,null,null,null,null,"千円",null,"",null,null,null,null,null,"人"]
[null,"（再掲）救急対応患者",null,null,null,null,null,null,null,null,null,null,null,"千円",null,null,null,null,null,null,null,"人",null,null,null,null,null,null,null,null,null,null,null,null,null,"（再掲）救急対応患者",null,null,null,null,null,"",null,null,null,null,null,"千円",null,{"$f":"IF(P148=\"\",\"\",P148)","v":""},null,null,null,null,null,"人"]
[]
["問７．患者の支払い環境について、以下のうち、支払い可能な手段を選択して下さい。（複数回答可）",null,null,null,null,null,null,null,null,null,null,null,null,null,null,null,null,null,null,null,null,null,null,null,null,null,null,null,null,null,null,null,null,null,"問６．患者の支払い環境について、以下のうち、支払い可能な手段を選択して下さい。（複数回答可）"]
[null,null,null,null,"１．クレジットカード・デビットカード",null,null,null,null,null,null,null,null,null,null,null,null,null,null,null,null,null,null,null,null,null,null,null,null,null,null,null,null,null,false,{"$f":"IF(AI151=TRUE,1,\"\")","v":""},null,null,"１．クレジットカード・デビットカード"]
[null,null,null,null,"２．電子マネー",null,null,null,null,null,null,null,null,null,null,null,null,null,null,null,null,null,null,null,null,null,null,null,null,null,null,null,null,null,false,"",null,null,"２．電子マネー"]
[null,null,null,null,"３．決済会社と連携した医療費支払いサービス（例：アプリ等を使用した支払方法）",null,null,null,null,null,null,null,null,null,null,null,null,null,null,null,null,null,null,null,null,null,null,null,null,null,null,null,null,null,false,"",null,null,"３．決済会社と連携した医療費支払いサービス（例：アプリ等を使用した支払方法）"]
[null,null,null,null,"４．自動精算機",null,null,null,null,null,null,null,null,null,null,null,null,null,null,null,null,null,null,null,null,null,null,null,null,null,null,null,null,null,false,"",null,null,"４．自動精算機"]
[null,null,null,null,"５．24時間対応（預り金を除く）",null,null,null,null,null,null,null,null,null,null,null,null,null,null,null,null,null,null,null,null,null,null,null,null,null,null,null,null,null,null,"",null,null,"５．24時間対応（預り金を除く）"]
[null,null,null,null,"６．その他",null,null,null,"（",null,null,null,null,null,null,null,null,null,null,null,null,null,null,null,null,null,null,null,null,null,"）",null,null,null,false,"",null,null,"６．その他",null,null,null,"（",{"$f":"病院経営管理指標等調査!$J$156","v":0},null,null,null,null,null,null,null,null,null,null,null,null,null,null,null,null,null,null,null,null,"）"]
[]
["貴病院における訪日外国人の状況についてお聞きします。",null,null,null,null,null,null,null,null,null,null,null,null,null,null,null,null,null,null,null,null,null,null,null,null,null,null,null,null,null,null,null,null,null,"貴病院における訪日外国人の状況についてお聞きします。"]
[]
["問８．令和３年１０月と１１月に、訪日外国人の診療（受診歴）がありましたか？",null,null,null,null,null,null,null,null,null,null,null,null,null,null,null,null,null,null,null,null,null,null,null,null,null,null,null,null,null,null,null,null,null,"問７．令和元年１０月と１１月に、訪日外国人の診療（受診歴）がありましたか？"]
[null,null,null,null,"１．ある",null,null,null,null,null,null,null,null,null,null,null,null,null,null,null,null,null,null,null,null,null,null,null,null,null,null,null,null,null,null,{"$f":"IF($AI$161=VALUE(LEFT(AM161,1)),1,\"\")","v":""},null,null,"１．ある"]
[null,null,null,null,"２．ない",null,null,null,null,null,null,null,null,null,null,null,"→「２．ない」の場合、問１０にお進みください",null,null,null,null,null,null,null,null,null,null,null,null,null,null,null,null,null,null,{"$f":"IF($AI$161=VALUE(LEFT(AM162,1)),1,\"\")","v":""},null,null,"２．ない",null,null,null,null,null,null,null,null,null,null,null,"→「２．ない」の場合、問１０にお進みください"]
[null,null,null,null,"３．不明",null,null,null,null,null,null,null,null,null,null,null,null,null,null,null,null,null,null,null,null,null,null,null,null,null,null,null,null,null,null,{"$f":"IF($AI$161=VALUE(LEFT(AM163,1)),1,\"\")","v":""},null,null,"３．不明"]
[]
["問９．令和３年１０月と１１月の各月における訪日外国人に係る未収金の額（千円単位）及び未収患者数をご記入下さい。",null,null,null,null,null,null,null,null,null,null,null,null,null,null,null,null,null,null,null,null,null,null,null,null,null,null,null,null,null,null,null,null,null,"問８．令和元年１０月と１１月の各月における訪日外国人に係る未収金の額（千円単位）及び未収患者数をご記入下さい。"]
[null,"時期",null,null,null,null,null,"①未収金額",null,null,null,null,null,null,null,"②未収金額に対応する患者数",null,null,null,null,null,null,null,"③1件当たり未収金額\n（①÷②）",null,null,null,null,null,null,null,null,null,null,null,"時期",null,null,null,null,null,"①未収金額",null,null,null,null,null,null,null,"②未収金額に対応する患者数",null,null,null,null,null,null,null,"③1件当たり未収金額\n（①÷②）"]
[null,"令和３年10月単月",null,null,null,null,null,null,null,null,null,null,null,"千円",null,null,null,null,null,null,null,"人",null,null,null,null,null,null,null,"千円",null,null,null,null,null,"令和元年10月単月",null,null,null,null,null,{"$f":"IF(H167=\"\",\"\",H167)","v":""},null,null,null,null,null,"千円",null,{"$f":"IF(P167=\"\",\"\",P167)","v":""},null,null,null,null,null,"人",null,{"$f":"IF(X167=\"\",\"\",X167)","v":""},null,null,null,null,null,"千円"]
[null,"令和３年11月単月",null,null,null,null,null,null,null,null,null,null,null,"千円",null,null,null,null,null,null,null,"人",null,null,null,null,null,null,null,"千円",null,null,null,null,null,"令和元年11月単月",null,null,null,null,null,{"$f":"IF(H168=\"\",\"\",H168)","v":""},null,null,null,null,null,"千円",null,{"$f":"IF(P168=\"\",\"\",P168)","v":""},null,null,null,null,null,"人",null,{"$f":"IF(X168=\"\",\"\",X168)","v":""},null,null,null,null,null,"千円"]
[]
["問１０．貴医療機関の名称及びご回答担当者についてご記入下さい。",null,null,null,null,null,null,null,null,null,null,null,null,null,null,null,null,null,null,null,null,null,null,null,null,null,null,null,null,null,null,null,null,null,"問９．貴医療機関の名称及びご回答担当者についてご記入下さい。"]
[null,"病院名",null,null,null,null,null,null,null,null,null,null,null,null,null,null,null,null,null,null,null,null,null,null,null,null,null,null,null,null,null,null,null,null,null,"病院名",null,null,null,{"$f":"IF(F171=\"\",\"\",F171)","v":""}]
[]
[]
[null,"所在地",null,null,null,null,null,null,null,null,null,null,null,null,null,null,null,null,null,null,null,null,null,null,null,null,null,null,null,null,null,null,null,null,null,"所在地",null,null,null,{"$f":"IF(F174=\"\",\"\",F174)","v":""}]
[]
[]
[null,"記入者",null,null,null,"フリガナ",null,null,null,null,null,null,null,null,null,null,null,"管理番号",null,null,null,null,null,null,null,null,null,null,null,null,null,null,null,null,null,"記入者",null,null,null,"フリガナ",null,null,{"$f":"IF(I177=\"\",\"\",I177)","v":""},null,null,null,null,null,null,null,null,"管理番号",null,null,{"$f":"IF(U177=\"\",\"\",U177)","v":""}]
[null,null,null,null,null,"氏名",null,null,null,null,null,null,null,null,null,null,null,"部署・\n役職",null,null,null,null,null,null,null,null,null,null,null,null,null,null,null,null,null,null,null,null,null,"氏名",null,null,{"$f":"IF(I178=\"\",\"\",I178)","v":""},null,null,null,null,null,null,null,null,"部署・役職",null,null,{"$f":"IF(U178=\"\",\"\",U178)","v":""}]
[]
[null,null,null,null,null,"電話番号",null,null,null,null,null,null,null,null,null,null,null,"ＦＡＸ\n番号",null,null,null,null,null,null,null,null,null,null,null,null,null,null,null,null,null,null,null,null,null,"電話番号",null,null,{"$f":"IF(I180=\"\",\"\",I180)","v":""},null,null,null,null,null,null,null,null,"ＦＡＸ番号",null,null,{"$f":"IF(U180=\"\",\"\",U180)","v":""}]
[]
[null,null,null,null,null,"メールアドレス",null,null,null,null,null,null,null,null,null,null,null,null,null,null,null,null,null,null,null,null,null,null,null,null,null,null,null,null,null,null,null,null,null,"メールアドレス",null,null,{"$f":"IF(I182=\"\",\"\",I182)","v":""}]
[]
[null,"本調査結果\nの送付",null,null,null,null,null,null,null,null,"１．希望する",null,null,null,null,null,null,null,null,null,"２．希望しない",null,null,null,null,null,null,null,null,null,null,null,null,null,null,"本調査結果\nの送付",null,null,null,null,null,null,{"$f":"IF($AI$184=VALUE(LEFT(AS184,1)),1,\"\")","v":""},null,"１．希望する",null,null,null,null,null,null,null,{"$f":"IF($AI$184=VALUE(LEFT(BC184,1)),1,\"\")","v":""},null,"２．希望しない"]
[]
[null,"※アンケート結果の送付を希望された場合、ご記入いただいたメールアドレスに、調査結果をお送りいたします。",null,null,null,null,null,null,null,null,null,null,null,null,null,null,null,null,null,null,null,null,null,null,null,null,null,null,null,null,null,null,null,null,null,"※アンケート結果の送付を希望された場合、ご記入いただいたメールアドレスに、調査結果をお送りいたします。"]
[null,"※上記の「管理番号」記載欄には、本調査票１ページ目の右上に貼付されております５桁の番号をご入力下さい。",null,null,null,null,null,null,null,null,null,null,null,null,null,null,null,null,null,null,null,null,null,null,null,null,null,null,null,null,null,null,null,null,null,"※上記の「管理番号」記載欄には、本調査票１ページ目の右上に貼付されております５桁の番号をご入力下さい。"]
[null,"必ず「病院経営管理指標調査票【財務票】」にご回答ください",null,null,null,null,null,null,null,null,null,null,null,null,null,null,null,null,null,null,null,null,null,null,null,null,"回答はこれで終了です"]
[null,"必ず「病院経営管理指標調査票【概況票】」にご回答ください"]
[]
[null,"６ページ以降は、開設者が以下に該当する病院からご回答をお願いします。\n\n　　・医療法人\n　　・都道府県\n　　・市町村\n　　・地方独立行政法人\n　　・健康保険組合およびその連合会\n　　・共済組合およびその連合会\n　　・国民健康保険組合\n　　・JCHO（独立行政法人地域医療機能推進機構）\n　　・日本赤十字社\n　　・社会福祉法人恩賜財団済生会\n　　・社会福祉法人北海道社会事業協会\n　　・厚生（医療）農業協同組合連合会\n\nそれ以外の方は、以上で設問は終わりです。\nメールにて（宛先：survey@aris-ri.jp）、調査票をお送り下さい。\nご多忙の中、調査にご協力賜わり、誠にありがとうございました。"]
[]
[]
[]
[]
[]
[]
[]
[]
[]
[]
[]
[]
[]
[]
[]
[]
[]
["病院経営管理指標調査票【財務票】"]
[]
[]
["１．宛名記載の医療機関の財務情報（病院単体）をご記入下さい。"]
[null,"①病院単体の貸借対照表（Ｂ/Ｓ）※１、損益計算書（Ｐ/Ｌ）※１をご記入下さい。"]
[null,"②病院単体のＢ/Ｓ、Ｐ/Ｌどちらかのみを作成している場合"]
[null,null,"→病院単体で作成しているもののみご記入下さい。"]
[null,"③病院単体での財務データをお持ちでない場合"]
[null,null,"→【財務票】については記入せず、別紙の【概況票】へお進み下さい。"]
[null,"④ご記入がお手数の場合"]
[null,null,"→最新の決算書及び過去２年度分※１の原本コピーをメールで送付してください。（宛先：survey@aris-ri.jp）"]
[]
["２．期中で、運営主体の変更など、施設の概況に大きな変更があった場合はお問い合わせ下さい。"]
[]
["３．各勘定科目については、原則、病院会計準則【改正版】（平成16年8月19日医政発第0819001号）の\n　　科目により整理してご記入下さい。"]
[]
[null,"公的医療機関等、開設主体としての会計基準を有する医療機関においては、病院会計準則適用\nガイドライン（平成16年8月19日医政発第0819002号）を参照して下さい。"]
[]
[null,null,"○病院会計準則について（厚生労働省医政局ＨＰ）"]
[null,null,"http://www.mhlw.go.jp/topics/bukyoku/isei/igyou/igyoukeiei/tuchi/jyunsoku01.html"]
[]
[]
[null,"※１　財務票については、把握できる最新の決算書の数値についてご記入下さい。\n　　　(９ページの問３．過去２年度分の医業収益・費用及び固定資産等の状況については、\n　　　 最新から遡って過去２年間の数値をご記入下さい)"]
[]
[]
[null,"※２　費用が不明の欄は空欄とし、０円の場合は０を記入して下さい。\n　　　また、合計値のみ把握し内訳が不明の場合も、内訳項目欄は空欄とし、合計欄のみご記入\n　　　下さい。"]
[]
[]
[]
[]
["以下でご記入いただく貸借対照表及び損益計算書の内容は、病院単体の状況をご記入下さい。\n\n※ご記入いただく代わりに、原本のコピーをメール（宛先：survey@aris-ri.jp）で送付いただいても結構です。"]
[]
[]
["問１．貸借対照表"]
["　　令和元年度分",null,null,null,null,null,"（令和",null,null,null,null,"年",null,null,"月",null,null,"日）※決算期末日をご記入下さい。"]
[]
["　　令和２年度分",null,null,null,null,null,"（令和",null,null,null,null,"年",null,null,"月",null,null,"日）※決算期末日をご記入下さい。"]
["令和元年度及び令和２年度の貸借対照表の状況と減価償却累計額を下表にご記入下さい。"]
["令和２年度の状況が確定していない場合は、令和元年度の状況のみご記入下さい。"]
["資産の部",null,null,null,null,null,null,null,null,null,null,null,null,null,null,null,null,"負債の部"]
["科目",null,null,null,null,null,null,null,null,"金額（円）",null,null,null,null,null,null,null,"科目",null,null,null,null,null,null,null,"金額（円）"]
[null,null,null,null,null,null,null,null,null,"令和元年度",null,null,null,"令和２年度",null,null,null,null,null,null,null,null,null,null,null,"令和元年度",null,null,null,"令和２年度"]
["Ⅰ　流動資産（１～７の合計）",null,null,null,null,null,null,null,null,{"$f":"SUM(J252:M258)","v":0},null,null,null,{"$f":"SUM(N252:Q258)","v":0},null,null,null,"Ⅲ　流動負債（１～６の合計）",null,null,null,null,null,null,null,{"$f":"SUM(Z252:AC258)","v":0},null,null,null,{"$f":"SUM(AD252:AG258)","v":0}]
[null,"１．現金・預金",null,null,null,null,null,null,null,null,null,null,null,null,null,null,null,null,"１．未払費用・未払金　※7"]
[null,"２．医業未収金　※1",null,null,null,null,null,null,null,null,null,null,null,null,null,null,null,null,"２．短期借入金　※8"]
[null,"３．その他未収金",null,null,null,null,null,null,null,null,null,null,null,null,null,null,null,null,"３．短期の引当金"]
[null,"４．有価証券",null,null,null,null,null,null,null,null,null,null,null,null,null,null,null,null,"４．未払税金　※9"]
[null,"５．たな卸資産　※2",null,null,null,null,null,null,null,null,null,null,null,null,null,null,null,null,"５．前受収益"]
[null,"６．短期貸付金",null,null,null,null,null,null,null,null,null,null,null,null,null,null,null,null,"６．その他の流動負債"]
[null,"７．その他の流動資産"]
["Ⅱ　固定資産（１～３の合計）",null,null,null,null,null,null,null,null,{"$f":"SUM(J260:M266)","v":0},null,null,null,{"$f":"SUM(N260:Q266)","v":0},null,null,null,"Ⅳ　固定負債（１～４の合計）",null,null,null,null,null,null,null,{"$f":"SUM(Z260:AC266)","v":0},null,null,null,{"$f":"SUM(AD260:AG266)","v":0}]
[null,"１．有形固定資産((1)～(4)の合計)",null,null,null,null,null,null,null,{"$f":"SUM(J261:M267)","v":0},null,null,null,{"$f":"SUM(N261:Q267)","v":0},null,null,null,null,"１．長期借入金　※8",null,null,null,null,null,null,{"$f":"SUM(Z261:AC267)","v":0},null,null,null,{"$f":"SUM(AD261:AG267)","v":0}]
[null,null,"(1)建物 ※3",null,null,null,null,null,null,null,null,null,null,null,null,null,null,null,"２．長期未払金"]
[null,null,"(2)備品 ※3",null,null,null,null,null,null,null,null,null,null,null,null,null,null,null,"３．退職給付引当金"]
[null,null,"(3)土地",null,null,null,null,null,null,null,null,null,null,null,null,null,null,null,"４．その他の固定負債"]
[null,null,"(4)その他の有形固定資産 ※3※4",null,null,null,null,null,null,null,null,null,null,null,null,null,null,"負債の部合計（Ⅲ＋Ⅳ）"]
[null,"２．無形固定資産　※5",null,null,null,null,null,null,null,null,null,null,null,null,null,null,null,"純資産の部"]
[null,"３．その他の資産((１)～(5)の合計)",null,null,null,null,null,null,null,{"$f":"SUM(J267:M271)","v":0},null,null,null,{"$f":"SUM(N267:Q271)","v":0},null,null,null,"Ⅴ純資産合計（１～３の合計）",null,null,null,null,null,null,null,{"$f":"SUM(Z267:AC271)","v":0},null,null,null,{"$f":"SUM(AD267:AG271)","v":0}]
[null,null,"(1)有価証券",null,null,null,null,null,null,null,null,null,null,null,null,null,null,null,"１．出資金"]
[null,null,"(2)長期貸付金",null,null,null,null,null,null,null,null,null,null,null,null,null,null,null,"２．利益剰余金"]
[null,null,"(3)役員従業員長期貸付金",null,null,null,null,null,null,null,null,null,null,null,null,null,null,null,null,"うち繰越利益剰余金"]
[null,null,"(4)他会計長期貸付金",null,null,null,null,null,null,null,null,null,null,null,null,null,null,null,"３．その他"]
[null,null,"(5)その他の固定資産　※6"]
["資産合計（Ⅰ＋Ⅱ）",null,null,null,null,null,null,null,null,{"$f":"SUM(J251,J259)","v":0},null,null,null,{"$f":"SUM(N251,N259)","v":0},null,null,null,"負債及び純資産合計（Ⅲ十Ⅳ+Ⅴ）",null,null,null,null,null,null,null,{"$f":"SUM(Z251,Z259)","v":0},null,null,null,{"$f":"SUM(AD251,AD259)","v":0}]
[]
["○有形固定資産の減価償却累計額の合計額をご記入下さい。"]
[" 減価償却累計額",null,null,null,null,null,"令和元年度分",null,null,null,null,null,null,null,null,null,null,"円"]
[null,null,null,null,null,null,"令和２年度分",null,null,null,null,null,null,null,null,null,null,"円"]
[]
["※1：「医業未収金」は、医業活動の収益にかかる未収金を計上してください。窓口未収金もこちらに計上して下さい。\n　　  貸倒引当金を差し引いた純額を計上して下さい。"]
[]
["※2： 医薬品、診療材料、給食用材料、貯蔵品は「たな卸資産」に計上して下さい。"]
["※3：「建物」「備品」「その他の有形固定資産」は、減価償却累計額を差し引いた純額を計上して下さい。"]
["※4：「その他の有形固定資産」は、構築物、車両及び船舶等を計上して下さい。"]
["※5：「無形固定資産」は、借地権、ソフトウェア等を計上して下さい。"]
["※6：「その他の固定資産」は、繰延勘定、整理勘定（本庁勘定など）等を計上して下さい。　"]
["※7：「未払費用・未払金」は、買掛金、未払費用、未払金等を計上して下さい。"]
["※8： 借入金は、固定負債の「長期借入金」と流動負債の「短期借入金」に区分計上して下さい。"]
["※9：「未払税金」は、未払い消費税、未払い法人税等を計上して下さい。"]
["問２．損益計算書"]
["　　　　　　令和元年度分",null,null,null,null,null,null,null,"（令和",null,null,null,null,"年",null,null,"月",null,null,"日～",null,"令和",null,null,null,"年",null,null,"月",null,null,"日）"]
["　　　　　　令和２年度分",null,null,null,null,null,null,null,"（令和",null,null,null,null,"年",null,null,"月",null,null,"日～",null,"令和",null,null,null,"年",null,null,"月",null,null,"日）"]
["令和元年度及び令和２年度の損益計算書の状況を下表にご記入下さい。"]
["令和２年度の状況が確定していない場合は、令和元年度の状況のみご記入下さい。"]
["収益",null,null,null,null,null,null,null,null,null,null,null,null,null,null,"費用"]
["科目",null,null,null,null,null,null,"金額（円）",null,null,null,null,null,null,null,"科目",null,null,null,null,null,null,null,null,null,"金額（円）"]
[null,null,null,null,null,null,null,"令和元年度",null,null,null,"令和２年度",null,null,null,null,null,null,null,null,null,null,null,null,null,"令和元年度",null,null,null,"令和２年度"]
["Ⅰ　医業収益（１～６の合計）",null,null,null,null,null,null,{"$f":"SUM(H297:L302)","v":0},null,null,null,{"$f":"SUM(L297:O302)","v":0},null,null,null,"Ⅳ　医業費用（１～９の合計）",null,null,null,null,null,null,null,null,null,{"$f":"SUM(Z297:AD302)","v":0},null,null,null,{"$f":"SUM(AD297:AG302)","v":0}]
[null,"１．入院診療収益",null,null,null,null,null,null,null,null,null,null,null,null,null,null,"１．材料費((1)～(3)の合計)",null,null,null,null,null,null,null,null,{"$f":"SUM(Z298:AC300)","v":0},null,null,null,{"$f":"SUM(AD298:AG300)","v":0}]
[null,"２．室料差額収益",null,null,null,null,null,null,null,null,null,null,null,null,null,null,null,"(1)医薬品費"]
[null,"３．外来診療収益",null,null,null,null,null,null,null,null,null,null,null,null,null,null,null,"(2)診療材料費"]
[null,"４．保健予防活動収益",null,null,null,null,null,null,null,null,null,null,null,null,null,null,null,"(3)その他の材料費"]
[null,"５．その他の医業収益",null,null,null,null,null,null,null,null,null,null,null,null,null,null,"２．給与費((1)～(4)の合計)",null,null,null,null,null,null,null,null,{"$f":"SUM(Z302,Z306,Z310,Z311)","v":0},null,null,null,{"$f":"SUM(AD302,AD306,AD310,AD311)","v":0}]
[null,"６．保険等査定減　※1",null,null,null,null,null,null,null,null,null,null,null,null,null,null,null,"(1)常勤職員給料・賞与(①～③の合計) ※2",null,null,null,null,null,null,null,{"$f":"SUM(Z303:AC305)","v":0},null,null,null,{"$f":"SUM(AD303:AG305)","v":0}]
[null,null,null,null,null,null,null,null,null,null,null,null,null,null,null,null,null,"①医師給料・賞与(歯科医師を除く)"]
[null,null,null,null,null,null,null,null,null,null,null,null,null,null,null,null,null,"②看護師給料・賞与 ※3"]
[null,null,null,null,null,null,null,null,null,null,null,null,null,null,null,null,null,"③その他給料・賞与(歯科医師を含む) ※4"]
[null,null,null,null,null,null,null,null,null,null,null,null,null,null,null,null,null,"(2)非常勤職員給料・賞与(①～③合計) ※2",null,null,null,null,null,null,null,{"$f":"SUM(Z307:AC309)","v":0},null,null,null,{"$f":"SUM(AD307:AG309)","v":0}]
[null,null,null,null,null,null,null,null,null,null,null,null,null,null,null,null,null,"①医師給料・賞与(歯科医師を除く)"]
[null,null,null,null,null,null,null,null,null,null,null,null,null,null,null,null,null,"②看護師給料・賞与 ※3"]
[null,null,null,null,null,null,null,null,null,null,null,null,null,null,null,null,null,"③その他給料・賞与(歯科医師を含む) ※4"]
[null,null,null,null,null,null,null,null,null,null,null,null,null,null,null,null,null,"(3)退職給付費用"]
[null,null,null,null,null,null,null,null,null,null,null,null,null,null,null,null,null,"(4)法定福利費"]
[null,null,null,null,null,null,null,null,null,null,null,null,null,null,null,null,"３．委託費"]
[null,null,null,null,null,null,null,null,null,null,null,null,null,null,null,null,"４．設備関係費((1)＋(2))",null,null,null,null,null,null,null,null,{"$f":"SUM(Z314:AC315)","v":0},null,null,null,{"$f":"SUM(AD314:AG315)","v":0}]
[null,null,null,null,null,null,null,null,null,null,null,null,null,null,null,null,null,"(1)減価償却費"]
[null,null,null,null,null,null,null,null,null,null,null,null,null,null,null,null,null,"(2)その他の設備関係費 ※5"]
[null,null,null,null,null,null,null,null,null,null,null,null,null,null,null,null,"５．研究研修費"]
[null,null,null,null,null,null,null,null,null,null,null,null,null,null,null,null,"６．経費"]
[null,null,null,null,null,null,null,null,null,null,null,null,null,null,null,null,"７．控除対象外消費税等負担額"]
[null,null,null,null,null,null,null,null,null,null,null,null,null,null,null,null,"８．本部費配賦額"]
[null,null,null,null,null,null,null,null,null,null,null,null,null,null,null,null,null,"うち役員報酬"]
[null,null,null,null,null,null,null,null,null,null,null,null,null,null,null,null,"９．その他"]
[null,null,null,null,null,null,null,null,null,null,null,null,null,null,null,"医業利益（損失）（I-IV）",null,null,null,null,null,null,null,null,null,{"$f":"H296-Z296","v":0},null,null,null,{"$f":"L296-AD296","v":0}]
[null,null,null,null,null,null,null,null,null,null,null,null,null,null,null,"Ⅴ　医業外費用（１～２の合計）",null,null,null,null,null,null,null,null,null,{"$f":"SUM(Z324:AC325)","v":0},null,null,null,{"$f":"SUM(AD324:AG325)","v":0}]
["Ⅱ　医業外収益（１～３の合計）",null,null,null,null,null,null,{"$f":"SUM(H325:L333)","v":0},null,null,null,{"$f":"SUM(L325:P333)","v":0},null,null,null,null,"１．支払利息"]
[null,"１．受取利息及び配当金",null,null,null,null,null,null,null,null,null,null,null,null,null,null,"２．その他の医業外費用 ※4※6"]
[null,"２．補助金収益　※9",null,null,null,null,null,null,null,null,null,null,null,null,null,"経常利益（損失）（医業利益+Ⅱ－V）",null,null,null,null,null,null,null,null,null,{"$f":"SUM(Z322,H324)-Z323","v":0},null,null,null,{"$f":"SUM(AD322,L324)-AD323","v":0}]
[null,"３．その他の医業外収益",null,null,null,null,null,null,null,null,null,null,null,null,null,"Ⅵ　臨時費用 ※7"]
["Ⅲ　臨時収益",null,null,null,null,null,null,null,null,null,null,null,null,null,null,"税引前当期純利益（純損失）（経常利益+Ⅲ-VI）",null,null,null,null,null,null,null,null,null,{"$f":"Z326+H328-Z327","v":0},null,null,null,{"$f":"AD326+L328-AD327","v":0}]
[]
["（令和２年度分のみ）\n損益計算書に計上された\nコロナ関係補助金収益（円）",null,null,null,null,null,null,"医業収益への計上額",null,null,null,null,null,null,"医業外収益への計上額",null,null,null,null,null,null,"臨時収益への計上額"]
[]
[]
["※1：当該勘定科目（「保険等査定減」）を計上している場合は、マイナスで計上して下さい。"]
["※2：「給与費」は、給与を常勤/非常勤で区分していない場合は、（２）を空欄とし、（１）に計上して下さい。"]
["※3：「常勤職員給与・賞与」および「非常勤職員給料・賞与」の「看護師給料・賞与」は、看護師および准看護師の\n　　 給与・賞与についてご記入下さい。"]
[]
["※4：組合管理費について、給与の場合は職員の雇用形態（常勤職員・非常勤職員）別に\n　　 該当する「その他給料・賞与（歯科医師を含む）」、経費の場合は「その他の医業外費用」に計上して下さい。"]
[]
["※5：「その他の設備関係費」は、機器賃借料、地代家賃、修繕費、固定資産税等を計上して下さい。"]
["※6：他会計への繰入額等はこちら（「その他の医業外費用」）に計上して下さい。"]
["※7：除却損は「臨時費用」に含めて下さい。"]
["※8：「損益計算書に計上されたコロナ関係補助金収益」については、従業者へ支払われる慰労金は含めずに記入して下さい。"]
["※9：補助金収益の計上先は、基本的には病院会計準則に基づき医業外収益に計上してください。ただし、医療法人が開設する病院については、病院単位の\n     財務諸表では医業外収益に計上し、医療法人全体の財務諸表作成に当たって事業収益に組替える方法か、当初から病院単位の財務諸表において医業収\n     益として計上し、その旨と金額を注記する方法のいずれかになります。病院により処理方法が異なりますので、貴院での会計処理の方法により計上し\n     てください。"]
[]
["問３．過去２年度分の医業収益・費用及び固定資産等の状況"]
["科目",null,null,null,"医業収益\n（円）※1",null,null,null,null,"医業費用\n（円）※1",null,null,null,null,"医業外収益\n（円）※1",null,null,null,null,null,"医業外費用\n（円）※1",null,null,null,null,null,"固定資産額\n（円）※2"]
[]
["令和元年度"]
["令和２年度"]
[]
["※1：「医業収益」、「医業費用」、「医業外収益」、「医業外費用」は、問２の損益計算書に対応した\n　　　科目の金額をご記入下さい。"]
[]
["※2：「固定資産額」は、当該年度末時点における貸借対照表の残高（減価償却累計額控除後）をご記入下さい。"]
[]
["概況票では、令和元年度及び令和２年度決算期末日の状況についてお聞きします。",null,null,null,null,null,null,null,null,null,null,null,null,null,null,null,null,null,null,null,null,null,null,null,null,null,null,null,null,null,null,null,null,null,null,null,"概況票では、平成３０年度決算期末日現在の状況についてお聞きします。"]
[]
["病院経営管理指標調査票【概況票】",null,null,null,null,null,null,null,null,null,null,null,null,null,null,null,null,null,null,null,null,null,null,null,null,null,null,null,null,null,null,null,null,null,null,null,"病院経営管理指標調査票【概況票】"]
[]
["概況票は、医療機関（施設、従業員、患者数等）の状況に関する設問と医療機関の経営課題に関する設問から\n構成されています。\n宛名記載の医療機関の状況（病院単体）をご記入下さい。　　　　※不明の項目は空欄としてください。",null,null,null,null,null,null,null,null,null,null,null,null,null,null,null,null,null,null,null,null,null,null,null,null,null,null,null,null,null,null,null,null,null,null,null,"概況票は、医療機関（施設、従業員、患者数等）の状況に関する設問と医療機関の経営課題に関する設問から\n構成されています。\n宛名記載の医療機関の状況（病院単体）をご記入下さい。　　　　※不明の項目は空欄としてください。"]
[]
[]
["問１．施設の概況（令和元年度及び令和２年度決算期末日現在）",null,null,null,null,null,null,null,null,null,null,null,null,null,null,null,null,null,null,null,null,null,null,null,null,null,null,null,null,null,null,null,null,null,null,"問１．施設の概況（令和元年度及び令和２年度決算期末日現在）"]
["　問１－１　令和元年度決算期末日現在",null,null,null,null,null,null,null,null,null,null,null,null,null,null,null,null,null,null,null,null,null,null,null,null,null,null,null,null,null,null,null,null,null,null,"　問１－１　令和元年度決算期末日現在"]
["(1)",null,null,null,null,null,"01.がん診療連携拠点病院",null,null,null,null,null,null,null,null,null,null,null,"08.地域医療支援病院",null,null,null,null,null,null,null,null,null,null,null,null,null,null,false,false,"(1)",null,null,{"$f":"IF(AH364=TRUE,1,\"\")","v":""},null,null,"01.がん診療連携拠点病院",null,null,null,null,null,null,null,null,null,{"$f":"IF(AI364=TRUE,1,\"\")","v":""},null,null,"08.地域医療支援病院"]
["承認等の状況\n（該当するすべてにチェックを付けてください）",null,null,null,null,null,"02.周産期母子医療センター",null,null,null,null,null,null,null,null,null,null,null,"09.臨床研修病院（基幹型）",null,null,null,null,null,null,null,null,null,null,null,null,null,null,false,false,"承認等の状況\n（該当するすべてに○をご記入下さい）",null,null,{"$f":"IF(AH365=TRUE,1,\"\")","v":""},null,null,"02.周産期母子医療センター",null,null,null,null,null,null,null,null,null,"",null,null,"09.臨床研修病院（基幹型）"]
[null,null,null,null,null,null,"03.救命救急センター\n   (高度救命救急センター含む)",null,null,null,null,null,null,null,null,null,null,null,"10.臨床研修病院（協力型）",null,null,null,null,null,null,null,null,null,null,null,null,null,null,false,false,null,null,null,"",null,null,"03.救命救急センター\n   (高度救命救急センター含む)",null,null,null,null,null,null,null,null,null,"",null,null,"10.臨床研修病院（協力型）"]
[null,null,null,null,null,null,"04.災害拠点病院",null,null,null,null,null,null,null,null,null,null,null,"11.ＤＰＣ病院Ⅰ群\n　（大学病院本院群）",null,null,null,null,null,null,null,null,null,null,null,null,null,null,false,false,null,null,null,"",null,null,"04.災害拠点病院",null,null,null,null,null,null,null,null,null,"",null,null,"11.ＤＰＣ病院Ⅰ群\n　（大学病院本院群）"]
[null,null,null,null,null,null,"05.へき地医療拠点病院",null,null,null,null,null,null,null,null,null,null,null,"12.ＤＰＣ病院Ⅱ群\n　（ＤＰＣ特定病院群）",null,null,null,null,null,null,null,null,null,null,null,null,null,null,false,false,null,null,null,"",null,null,"05.へき地医療拠点病院",null,null,null,null,null,null,null,null,null,"",null,null,"12.ＤＰＣ病院Ⅱ群\n　（ＤＰＣ特定病院群）"]
[null,null,null,null,null,null,"06.在宅療養支援病院",null,null,null,null,null,null,null,null,null,null,null,"13.ＤＰＣ病院Ⅲ群\n　（ＤＰＣ標準病院群）",null,null,null,null,null,null,null,null,null,null,null,null,null,null,false,false,null,null,null,"",null,null,"06.在宅療養支援病院",null,null,null,null,null,null,null,null,null,"",null,null,"13.ＤＰＣ病院Ⅲ群\n　（ＤＰＣ標準病院群）"]
[null,null,null,null,null,null,"07.在宅療養後方支援病院",null,null,null,null,null,null,null,null,null,null,null,"14.ＤＰＣ準備病院",null,null,null,null,null,null,null,null,null,null,null,null,null,null,false,false,null,null,null,"",null,null,"07.在宅療養後方支援病院",null,null,null,null,null,null,null,null,null,"",null,null,"14.ＤＰＣ準備病院"]
[]
["(2)\n許可及び稼働病床数",null,null,null,null,null,"総数",null,null,null,null,null,null,null,null,null,null,null,null,null,null,null,null,null,null,null,null,null,null,null,null,null,null,null,null,null,"(2)\n許可及び稼働病床数",null,null,null,null,null,"総数"]
[null,null,null,null,null,null,null,null,null,null,"精神病床",null,null,null,"感染症病床",null,null,null,"結核病床",null,null,"一般病床","一般病床",null,null,null,"療養病床",null,null,null,null,null,null,null,null,null,null,null,null,null,null,null,null,null,null,null,"精神病床",null,null,null,"感染症病床",null,null,null,"結核病床",null,null,"一般病床","一般病床",null,null,null,"療養病床"]
[null,null,null,"許可病床数",null,null,null,null,null,"床",null,null,null,"床",null,null,null,"床",null,null,null,"床",null,null,null,"床",null,null,null,"床",null,null,null,null,null,null,null,null,null,"許可病床数",null,null,{"$f":"IF(G374=\"\",\"\",G374)","v":""},null,null,"床",{"$f":"IF(K374=\"\",\"\",K374)","v":""},null,null,"床",{"$f":"IF(O374=\"\",\"\",O374)","v":""},null,null,"床",{"$f":"IF(S374=\"\",\"\",S374)","v":""},null,null,"床",{"$f":"IF(W374=\"\",\"\",W374)","v":""},null,null,"床",{"$f":"IF(AA374=\"\",\"\",AA374)","v":""},null,null,"床"]
[null,null,null,"稼働病床数",null,null,null,null,null,"床",null,null,null,"床",null,null,null,"床",null,null,null,"床",null,null,null,"床",null,null,null,"床",null,null,null,null,null,null,null,null,null,"稼働病床数",null,null,{"$f":"IF(G375=\"\",\"\",G375)","v":""},null,null,"床",{"$f":"IF(K375=\"\",\"\",K375)","v":""},null,null,"床",{"$f":"IF(O375=\"\",\"\",O375)","v":""},null,null,"床",{"$f":"IF(S375=\"\",\"\",S375)","v":""},null,null,"床",{"$f":"IF(W375=\"\",\"\",W375)","v":""},null,null,"床",{"$f":"IF(AA375=\"\",\"\",AA375)","v":""},null,null,"床"]
["※許可病床数：医療法第7条第2項の規定に基づき届け出をした病床の種別の病床数",null,null,null,null,null,null,null,null,null,null,null,null,null,null,null,null,null,null,null,null,null,null,null,null,null,null,null,null,null,null,null,null,null,null,null,"※許可病床数：医療法第7条第2項の規定に基づき届け出をした病床の種別の病床数"]
["※稼働病床数：病床に応じた医師、看護師等が配置されるなどして、実際に利用している病床の数",null,null,null,null,null,null,null,null,null,null,null,null,null,null,null,null,null,null,null,null,null,null,null,null,null,null,null,null,null,null,null,null,null,null,null,"※稼働病床数：病床に応じた医師、看護師等が配置されるなどして、実際に利用している病床の数"]
["※一般病床数：(3)-2における機能を持つ病床を有する場合、内訳をご記入下さい。",null,null,null,null,null,null,null,null,null,null,null,null,null,null,null,null,null,null,null,null,null,null,null,null,null,null,null,null,null,null,null,null,null,null,null,"※一般病床数：(3)-2における機能を持つ病床を有する場合、内訳をご記入下さい。"]
["※療養病床数：介護療養病床を有する場合、(3)-3において療養病床の合計と内訳をご記入下さい。",null,null,null,null,null,null,null,null,null,null,null,null,null,null,null,null,null,null,null,null,null,null,null,null,null,null,null,null,null,null,null,null,null,null,null,"※療養病床数：介護療養病床を有する場合、(3)-3において療養病床の合計と内訳をご記入下さい。"]
[]
[]
[]
["(2)-2\n一般病床の内訳",null,null,null,null,null,"小児入院医療\n管理料適用病床",null,null,null,null,"緩和ケア病床",null,null,null,null,"回復期リハビリテーション病床",null,null,null,null,"地域包括ケア病床",null,null,"一般病床",null,null,null,null,null,null,null,null,null,{"$f":"IF(COUNTBLANK(W374:W375)=2,\"-\",SUM(BG374:BI375))","v":"-"},null,"(2)-2\n一般病床の内訳",null,null,null,null,null,"小児入院医療\n管理料適用病床",null,null,null,null,"緩和ケア病床",null,null,null,null,"回復期リハビリテーション病床",null,null,null,null,"地域包括ケア病床",null,null,"一般病床"]
[null,null,null,"許可病床数",null,null,null,null,null,null,"床",null,null,null,null,"床",null,null,null,null,"床",null,null,null,null,"床",null,null,null,null,null,null,null,null,null,null,null,null,null,"許可病床数",null,null,{"$f":"IF(G384=\"\",\"\",G384)","v":""},null,null,null,"床",{"$f":"IF(L384=\"\",\"\",L384)","v":""},null,null,null,"床",{"$f":"IF(Q384=\"\",\"\",Q384)","v":""},null,null,null,"床",{"$f":"IF(V384=\"\",\"\",V384)","v":""},null,null,null,"床"]
[null,null,null,"稼働病床数",null,null,null,null,null,null,"床",null,null,null,null,"床",null,null,null,null,"床",null,null,null,null,"床",null,null,null,null,null,null,null,null,false,null,null,null,null,"稼働病床数",null,null,{"$f":"IF(G385=\"\",\"\",G385)","v":""},null,null,null,"床",{"$f":"IF(L385=\"\",\"\",L385)","v":""},null,null,null,"床",{"$f":"IF(Q385=\"\",\"\",Q385)","v":""},null,null,null,"床",{"$f":"IF(V385=\"\",\"\",V385)","v":""},null,null,null,"床"]
[null,null,null,"令和元年年度末までに開設している場合にはチェックを付けてください",null,null,null,null,null,null,null,null,null,null,null,null,null,null,null,null,null,null,null,null,null,null,null,null,null,null,null,null,null,null,false,null,null,null,null,"平成29年度末までに開設して\nいる場合には印を記入",null,null,null,null,null,null,null,{"$f":"IF($AI$385=TRUE,1,\"\")","v":""},null,null,null,null,{"$f":"IF($AI$386=TRUE,1,\"\")","v":""},null,null,null,null,{"$f":"IF($AI$387=TRUE,1,\"\")","v":""}]
[null,null,null,null,null,null,null,null,null,null,null,null,null,null,null,null,null,null,null,null,null,null,null,null,null,null,null,null,null,null,null,null,null,null,false]
[]
[null,null,null,null,null,null,"障がい者施設等\n病床",null,null,null,null,"特殊疾患病床",null,null,null,null,"その他",null,null,null,null,null,null,null,null,null,null,null,null,null,null,null,null,null,null,null,null,null,null,null,null,null,"障がい者施設等\n病床",null,null,null,null,"特殊疾患病床",null,null,null,null,"その他"]
[null,null,null,"許可病床数",null,null,null,null,null,null,"床",null,null,null,null,"床",null,null,null,null,"床",null,null,null,null,null,null,null,null,null,null,null,null,null,null,null,null,null,null,"許可病床数",null,null,{"$f":"IF(G390=\"\",\"\",G390)","v":""},null,null,null,"床",{"$f":"IF(L390=\"\",\"\",L390)","v":""},null,null,null,"床",{"$f":"IF(Q390=\"\",\"\",Q390)","v":""},null,null,null,"床"]
[null,null,null,"稼働病床数",null,null,null,null,null,null,"床",null,null,null,null,"床",null,null,null,null,"床",null,null,null,null,null,null,null,null,null,null,null,null,null,null,null,null,null,null,"稼働病床数",null,null,{"$f":"IF(G391=\"\",\"\",G391)","v":""},null,null,null,"床",{"$f":"IF(L391=\"\",\"\",L391)","v":""},null,null,null,"床",{"$f":"IF(Q391=\"\",\"\",Q391)","v":""},null,null,null,"床"]
[]
[]
[]
["(2)-3\n療養病床の内訳",null,null,null,null,null,"総数",null,null,null,null,null,null,null,null,null,null,null,null,null,null,null,null,null,null,null,null,null,null,null,null,null,null,null,null,null,"(2)-3\n療養病床の内訳",null,null,null,null,null,"総数"]
[null,null,null,null,null,null,null,null,null,null,null,"うち介護型",null,null,null,null,"うち医療型",null,null,null,null,null,null,null,null,null,null,null,null,null,null,null,null,null,null,null,null,null,null,null,null,null,null,null,null,null,null,"うち介護型",null,null,null,null,"うち医療型"]
[null,null,null,null,null,null,null,null,null,null,null,null,null,null,null,null,null,null,null,null,null,"回復期リハビリテーション病床",null,null,null,null,"地域包括ケア病床",null,null,"一般病床",null,null,null,null,{"$f":"IF(COUNTBLANK(AA374:AA375)=2,\"-\",SUM(BK374:BM375))","v":"-"},null,null,null,null,null,null,null,null,null,null,null,null,null,null,null,null,null,null,null,null,null,null,"回復期リハビリテーション病床",null,null,null,null,"地域包括ケア病床",null,null,"一般病床"]
[null,null,null,"許可病床数",null,null,null,null,null,null,"床",null,null,null,null,"床",null,null,null,null,"床",null,null,null,null,"床",null,null,null,null,"床",null,null,null,null,null,null,null,null,"許可病床数",null,null,{"$f":"IF(G398=\"\",\"\",G398)","v":""},null,null,null,"床",{"$f":"IF(L398=\"\",\"\",L398)","v":""},null,null,null,"床",{"$f":"IF(Q398=\"\",\"\",Q398)","v":""},null,null,null,"床",{"$f":"IF(V398=\"\",\"\",V398)","v":""},null,null,null,"床",{"$f":"IF(AA398=\"\",\"\",AA398)","v":""},null,null,null,"床"]
[null,null,null,"稼働病床数",null,null,null,null,null,null,"床",null,null,null,null,"床",null,null,null,null,"床",null,null,null,null,"床",null,null,null,null,"床",null,null,null,false,null,null,null,null,"稼働病床数",null,null,{"$f":"IF(G399=\"\",\"\",G399)","v":""},null,null,null,"床",{"$f":"IF(L399=\"\",\"\",L399)","v":""},null,null,null,"床",{"$f":"IF(Q399=\"\",\"\",Q399)","v":""},null,null,null,"床",{"$f":"IF(V399=\"\",\"\",V399)","v":""},null,null,null,"床",{"$f":"IF(AA399=\"\",\"\",AA399)","v":""},null,null,null,"床"]
[null,null,null,"令和元年度末までに開設して\nいる場合にはチェックを付けてください",null,null,null,null,null,null,null,null,null,null,null,null,null,null,null,null,null,null,null,null,null,null,null,null,null,null,null,null,null,null,false,null,null,null,null,"平成29年度末までに開設して\nいる場合には印を記入",null,null,null,null,null,null,null,{"$f":"IF($AI$399=TRUE,1,\"\")","v":""},null,null,null,null,{"$f":"IF($AI$400=TRUE,1,\"\")","v":""},null,null,null,null,{"$f":"IF($AI$401=TRUE,1,\"\")","v":""}]
[null,null,null,null,null,null,null,null,null,null,null,null,null,null,null,null,null,null,null,null,null,null,null,null,null,null,null,null,null,null,null,null,null,null,false]
[]
["\n(3)\n診療報酬の算定状況（該当するものにチェックを付けてください）\n\n※複数取得している場合は全てにチェックを付けてください。",null,null,"①一般病棟\n  入院基本料",null,null,null,null,null,null,null,"01.急性期一般入院料１",null,null,null,null,null,null,null,null,null,null,null,"06.急性期一般入院料６",null,null,null,null,null,null,null,null,null,null,false,false,"\n(3)\n診療報酬の算定状況（該当するものに○をご記入ください）\n\n※複数取得している場合は全てに○をご記入ください。",null,null,"①一般病棟\n  入院基本料",null,null,null,null,{"$f":"IF($AI403=TRUE,1,\"\")","v":""},null,null,"01.急性期一般入院料１",null,null,null,null,null,null,null,null,{"$f":"IF($AJ403=TRUE,1,\"\")","v":""},null,null,"06.急性期一般入院料６"]
[null,null,null,null,null,null,null,null,null,null,null,"02.急性期一般入院料２",null,null,null,null,null,null,null,null,null,null,null,"07.急性期一般入院料７",null,null,null,null,null,null,null,null,null,null,false,false,null,null,null,null,null,null,null,null,{"$f":"IF($AI404=TRUE,1,\"\")","v":""},null,null,"02.急性期一般入院料２",null,null,null,null,null,null,null,null,"",null,null,"07.急性期一般入院料７"]
[null,null,null,null,null,null,null,null,null,null,null,"03.急性期一般入院料３",null,null,null,null,null,null,null,null,null,null,null,"08.地域一般入院料１",null,null,null,null,null,null,null,null,null,null,false,false,null,null,null,null,null,null,null,null,{"$f":"IF($AI405=TRUE,1,\"\")","v":""},null,null,"03.急性期一般入院料３",null,null,null,null,null,null,null,null,"",null,null,"08.地域一般入院料１"]
[null,null,null,null,null,null,null,null,null,null,null,"04.急性期一般入院料４",null,null,null,null,null,null,null,null,null,null,null,"09.地域一般入院料２",null,null,null,null,null,null,null,null,null,null,false,false,null,null,null,null,null,null,null,null,"",null,null,"04.急性期一般入院料４",null,null,null,null,null,null,null,null,"",null,null,"09.地域一般入院料２"]
[null,null,null,null,null,null,null,null,null,null,null,"05.急性期一般入院料５",null,null,null,null,null,null,null,null,null,null,null,"10.地域一般入院料３",null,null,null,null,null,null,null,null,null,null,false,false,null,null,null,null,null,null,null,null,"",null,null,"05.急性期一般入院料５",null,null,null,null,null,null,null,null,"",null,null,"10.地域一般入院料３"]
[null,null,null,"②療養病棟\n  入院基本料",null,null,null,null,null,null,null,"01.療養病棟入院基本料１",null,null,null,null,null,null,null,null,null,null,null,"03.その他",null,null,null,null,null,null,null,null,null,null,false,false,null,null,null,"②療養病棟\n  入院基本料",null,null,null,null,"",null,null,"01.療養病棟入院基本料１",null,null,null,null,null,null,null,null,"",null,null,"03.その他"]
[null,null,null,null,null,null,null,null,null,null,null,"02.療養病棟入院基本料２",null,null,null,null,null,null,null,null,null,null,null,null,null,null,null,null,null,null,null,null,null,null,false,null,null,null,null,null,null,null,null,null,"",null,null,"02.療養病棟入院基本料２"]
[null,null,null,"③精神病棟\n  入院基本料",null,null,null,null,null,null,null,"01.10対１入院基本料",null,null,null,null,null,null,null,null,null,null,null,"04.18対１入院基本料",null,null,null,null,null,null,null,null,null,null,false,false,null,null,null,"③精神病棟\n  入院基本料",null,null,null,null,"",null,null,"01.10対１入院基本料",null,null,null,null,null,null,null,null,{"$f":"IF($AJ410=TRUE,1,\"\")","v":""},null,null,"04.18対１入院基本料"]
[null,null,null,null,null,null,null,null,null,null,null,"02.13対１入院基本料",null,null,null,null,null,null,null,null,null,null,null,"05.20対１入院基本料",null,null,null,null,null,null,null,null,null,null,false,false,null,null,null,null,null,null,null,null,"",null,null,"02.13対１入院基本料",null,null,null,null,null,null,null,null,"",null,null,"05.20対１入院基本料"]
[null,null,null,null,null,null,null,null,null,null,null,"03.15対１入院基本料",null,null,null,null,null,null,null,null,null,null,null,"06.その他",null,null,null,null,null,null,null,null,null,null,false,false,null,null,null,null,null,null,null,null,"",null,null,"03.15対１入院基本料",null,null,null,null,null,null,null,null,"",null,null,"06.その他（"]
[null,null,null,"④回復期リハビリ\n  テーション\n  病棟入院料",null,null,null,null,null,null,null,"01.回復期リハビリテーション\n　 病棟入院料１",null,null,null,null,null,null,null,null,null,null,null,"05.回復期リハビリテーション\n　 病棟入院料５",null,null,null,null,null,null,null,null,null,null,false,false,null,null,null,"④回復期リハビリ\n  テーション\n  病棟入院料",null,null,null,null,"",null,null,"01.回復期リハビリテーション\n　 病棟入院料１",null,null,null,null,null,null,null,null,"",null,null,"05.回復期リハビリテーション\n　 病棟入院料５"]
[null,null,null,null,null,null,null,null,null,null,null,"02.回復期リハビリテーション\n　 病棟入院料２",null,null,null,null,null,null,null,null,null,null,null,"06.回復期リハビリテーション\n　 病棟入院料６",null,null,null,null,null,null,null,null,null,null,false,false,null,null,null,null,null,null,null,null,"",null,null,"02.回復期リハビリテーション\n　 病棟入院料２",null,null,null,null,null,null,null,null,"",null,null,"06.回復期リハビリテーション\n　 病棟入院料６"]
[null,null,null,null,null,null,null,null,null,null,null,"03.回復期リハビリテーション\n　 病棟入院料３",null,null,null,null,null,null,null,null,null,null,null,"07.その他",null,null,null,null,null,null,null,null,null,null,false,false,null,null,null,null,null,null,null,null,"",null,null,"03.回復期リハビリテーション\n　 病棟入院料３",null,null,null,null,null,null,null,null,"",null,null,"07.その他"]
[null,null,null,null,null,null,null,null,null,null,null,"04.回復期リハビリテーション\n　 病棟入院料４",null,null,null,null,null,null,null,null,null,null,null,null,null,null,null,null,null,null,null,null,null,null,false,null,null,null,null,null,null,null,null,null,"",null,null,"04.回復期リハビリテーション\n　 病棟入院料４"]
[null,null,null,"⑤地域包括ケア\n  病棟入院料",null,null,null,null,null,null,null,"01.地域包括ケア病棟入院料１",null,null,null,null,null,null,null,null,null,null,null,"05.地域包括ケア入院医療管理料１",null,null,null,null,null,null,null,null,null,null,false,false,null,null,null,"⑤地域包括ケア\n  病棟入院料",null,null,null,null,"",null,null,"01.地域包括ケア病棟入院料１",null,null,null,null,null,null,null,null,{"$f":"IF($AJ417=TRUE,1,\"\")","v":""},null,null,"05.地域包括ケア入院医療管理料１"]
[null,null,null,null,null,null,null,null,null,null,null,"02.地域包括ケア病棟入院料２",null,null,null,null,null,null,null,null,null,null,null,"06.地域包括ケア入院医療管理料２",null,null,null,null,null,null,null,null,null,null,false,false,null,null,null,null,null,null,null,null,"",null,null,"02.地域包括ケア病棟入院料２",null,null,null,null,null,null,null,null,"",null,null,"06.地域包括ケア入院医療管理料２"]
[null,null,null,null,null,null,null,null,null,null,null,"03.地域包括ケア病棟入院料３",null,null,null,null,null,null,null,null,null,null,null,"07.地域包括ケア入院医療管理料３",null,null,null,null,null,null,null,null,null,null,false,false,null,null,null,null,null,null,null,null,"",null,null,"03.地域包括ケア病棟入院料３",null,null,null,null,null,null,null,null,"",null,null,"07.地域包括ケア入院医療管理料３"]
[null,null,null,null,null,null,null,null,null,null,null,"04.地域包括ケア病棟入院料４",null,null,null,null,null,null,null,null,null,null,null,"08.地域包括ケア入院医療管理料４",null,null,null,null,null,null,null,null,null,null,false,false,null,null,null,null,null,null,null,null,"",null,null,"04.地域包括ケア病棟入院料４",null,null,null,null,null,null,null,null,"",null,null,"08.地域包括ケア入院医療管理料４"]
[null,null,null,"⑥その他",null,null,null,null,null,null,null,"01.救命救急入院料",null,null,null,null,null,null,null,null,null,null,null,"09.体制強化加算",null,null,null,null,null,null,null,null,null,null,false,false,null,null,null,"⑥その他",null,null,null,null,"",null,null,"01.救命救急入院料",null,null,null,null,null,null,null,null,"",null,null,"09.体制強化加算"]
[null,null,null,null,null,null,null,null,null,null,null,"02.特定集中治療室管理料",null,null,null,null,null,null,null,null,null,null,null,"10.入院時訪問指導加算",null,null,null,null,null,null,null,null,null,null,false,false,null,null,null,null,null,null,null,null,"",null,null,"02.特定集中治療室管理料",null,null,null,null,null,null,null,null,"",null,null,"10.入院時訪問指導加算"]
[null,null,null,null,null,null,null,null,null,null,null,"03.ハイケアユニット入院\n　 医療管理料",null,null,null,null,null,null,null,null,null,null,null,"11.慢性維持透析管理加算",null,null,null,null,null,null,null,null,null,null,false,false,null,null,null,null,null,null,null,null,"",null,null,"03.ハイケアユニット入院\n　 医療管理料",null,null,null,null,null,null,null,null,"",null,null,"11.慢性維持透析管理加算"]
[null,null,null,null,null,null,null,null,null,null,null,"04.脳卒中ケアユニット入院\n　 医療管理料",null,null,null,null,null,null,null,null,null,null,null,"12.在宅復帰機能強化加算",null,null,null,null,null,null,null,null,null,null,false,false,null,null,null,null,null,null,null,null,"",null,null,"04.脳卒中ケアユニット入院\n　 医療管理料",null,null,null,null,null,null,null,null,"",null,null,"12.在宅復帰機能強化加算"]
[null,null,null,null,null,null,null,null,null,null,null,"05.地域包括診療料",null,null,null,null,null,null,null,null,null,null,null,"13.在宅療養実績加算",null,null,null,null,null,null,null,null,null,null,false,false,null,null,null,null,null,null,null,null,"",null,null,"05.地域包括診療料",null,null,null,null,null,null,null,null,"",null,null,"13.在宅療養実績加算"]
[null,null,null,null,null,null,null,null,null,null,null,"06.介護支援連携指導料",null,null,null,null,null,null,null,null,null,null,null,"14.精神科急性期医師配置加算",null,null,null,null,null,null,null,null,null,null,false,false,null,null,null,null,null,null,null,null,"",null,null,"06.介護支援連携指導料",null,null,null,null,null,null,null,null,"",null,null,"14.精神科急性期医師配置加算"]
[null,null,null,null,null,null,null,null,null,null,null,"07.ADL維持向上等体制加算",null,null,null,null,null,null,null,null,null,null,null,"15.院内標準診療計画加算",null,null,null,null,null,null,null,null,null,null,false,false,null,null,null,null,null,null,null,null,"",null,null,"07.ADL維持向上等体制加算",null,null,null,null,null,null,null,null,"",null,null,"15.院内標準診療計画加算"]
[null,null,null,null,null,null,null,null,null,null,null,null,null,null,null,null,null,null,null,null,null,null,null,null,null,null,null,null,null,null,null,null,null,null,false,false,null,null,null,null,null,null,null,null,"",null,null,"08.救急・在宅等支援病床初期加算",null,null,null,null,null,null,null,null,{"$f":"IF($AJ428=TRUE,1,\"\")","v":""},null,null,"16.精神保健福祉士配置加算"]
[]
["　問１－２　令和２年度決算期末日現在",null,null,null,null,null,null,null,null,null,null,null,null,null,null,null,null,null,null,null,null,null,null,null,null,null,null,null,null,null,null,null,null,null,null,null,"問１．施設の概況（平成３０年度決算期末日現在）"]
[null,null,null,null,null,"※左の転記ボタンを押下することにより、上記の令和元年度のデータを自動的に転記することができます。"]
[]
["(1)",null,null,null,null,null,"01.がん診療連携拠点病院",null,null,null,null,null,null,null,null,null,null,null,"08.地域医療支援病院",null,null,null,null,null,null,null,null,null,null,null,null,null,null,null,null,"(1)",null,null,{"$f":"IF(OR(AH433=1,AH433=TRUE),1,\"\")","v":""},null,null,"01.がん診療連携拠点病院",null,null,null,null,null,null,null,null,null,{"$f":"IF(OR(AI433=1,AI433=TRUE),1,\"\")","v":""},null,null,"08.地域医療支援病院"]
["承認等の状況\n（該当するすべてにチェックを付けてください）",null,null,null,null,null,"02.周産期母子医療センター",null,null,null,null,null,null,null,null,null,null,null,"09.臨床研修病院（基幹型）",null,null,null,null,null,null,null,null,null,null,null,null,null,null,null,null,"承認等の状況\n（該当するすべてに○をご記入下さい）",null,null,{"$f":"IF(OR(AH434=1,AH434=TRUE),1,\"\")","v":""},null,null,"02.周産期母子医療センター",null,null,null,null,null,null,null,null,null,{"$f":"IF(OR(AI434=1,AI434=TRUE),1,\"\")","v":""},null,null,"09.臨床研修病院（基幹型）"]
[null,null,null,null,null,null,"03.救命救急センター\n   (高度救命救急センター含む)",null,null,null,null,null,null,null,null,null,null,null,"10.臨床研修病院（協力型）",null,null,null,null,null,null,null,null,null,null,null,null,null,null,null,null,null,null,null,"",null,null,"03.救命救急センター\n   (高度救命救急センター含む)",null,null,null,null,null,null,null,null,null,"",null,null,"10.臨床研修病院（協力型）"]
[null,null,null,null,null,null,"04.災害拠点病院",null,null,null,null,null,null,null,null,null,null,null,"11.ＤＰＣ病院Ⅰ群\n　（大学病院本院群）",null,null,null,null,null,null,null,null,null,null,null,null,null,null,null,null,null,null,null,"",null,null,"04.災害拠点病院",null,null,null,null,null,null,null,null,null,"",null,null,"11.ＤＰＣ病院Ⅰ群\n　（大学病院本院群）"]
[null,null,null,null,null,null,"05.へき地医療拠点病院",null,null,null,null,null,null,null,null,null,null,null,"12.ＤＰＣ病院Ⅱ群\n　（ＤＰＣ特定病院群）",null,null,null,null,null,null,null,null,null,null,null,null,null,null,null,null,null,null,null,"",null,null,"05.へき地医療拠点病院",null,null,null,null,null,null,null,null,null,"",null,null,"12.ＤＰＣ病院Ⅱ群\n　（ＤＰＣ特定病院群）"]
[null,null,null,null,null,null,"06.在宅療養支援病院",null,null,null,null,null,null,null,null,null,null,null,"13.ＤＰＣ病院Ⅲ群\n　（ＤＰＣ標準病院群）",null,null,null,null,null,null,null,null,null,null,null,null,null,null,null,null,null,null,null,"",null,null,"06.在宅療養支援病院",null,null,null,null,null,null,null,null,null,"",null,null,"13.ＤＰＣ病院Ⅲ群\n　（ＤＰＣ標準病院群）"]
[null,null,null,null,null,null,"07.在宅療養後方支援病院",null,null,null,null,null,null,null,null,null,null,null,"14.ＤＰＣ準備病院",null,null,null,null,null,null,null,null,null,null,null,null,null,null,null,null,null,null,null,"",null,null,"07.在宅療養後方支援病院",null,null,null,null,null,null,null,null,null,"",null,null,"14.ＤＰＣ準備病院"]
[]
["(2)\n許可及び稼働病床数",null,null,null,null,null,"総数",null,null,null,null,null,null,null,null,null,null,null,null,null,null,null,null,null,null,null,null,null,null,null,null,null,null,null,null,null,"(2)\n許可及び稼働病床数",null,null,null,null,null,"総数"]
[null,null,null,null,null,null,null,null,null,null,"精神病床",null,null,null,"感染症病床",null,null,null,"結核病床",null,null,"一般病床","一般病床",null,null,null,"療養病床",null,null,null,null,null,null,null,null,null,null,null,null,null,null,null,null,null,null,null,"精神病床",null,null,null,"感染症病床",null,null,null,"結核病床",null,null,"一般病床","一般病床",null,null,null,"療養病床"]
[null,null,null,"許可病床数",null,null,null,null,null,"床",null,null,null,"床",null,null,null,"床",null,null,null,"床",null,null,null,"床",null,null,null,"床",null,null,null,null,null,null,null,null,null,"許可病床数",null,null,{"$f":"IF(G443=\"\",\"\",G443)","v":""},null,null,"床",{"$f":"IF(K443=\"\",\"\",K443)","v":""},null,null,"床",{"$f":"IF(O443=\"\",\"\",O443)","v":""},null,null,"床",{"$f":"IF(S443=\"\",\"\",S443)","v":""},null,null,"床",{"$f":"IF(W443=\"\",\"\",W443)","v":""},null,null,"床",{"$f":"IF(AA443=\"\",\"\",AA443)","v":""},null,null,"床"]
[null,null,null,"稼働病床数",null,null,null,null,null,"床",null,null,null,"床",null,null,null,"床",null,null,null,"床",null,null,null,"床",null,null,null,"床",null,null,null,null,null,null,null,null,null,"稼働病床数",null,null,{"$f":"IF(G444=\"\",\"\",G444)","v":""},null,null,"床",{"$f":"IF(K444=\"\",\"\",K444)","v":""},null,null,"床",{"$f":"IF(O444=\"\",\"\",O444)","v":""},null,null,"床",{"$f":"IF(S444=\"\",\"\",S444)","v":""},null,null,"床",{"$f":"IF(W444=\"\",\"\",W444)","v":""},null,null,"床",{"$f":"IF(AA444=\"\",\"\",AA444)","v":""},null,null,"床"]
["※許可病床数：医療法第7条第2項の規定に基づき届け出をした病床の種別の病床数",null,null,null,null,null,null,null,null,null,null,null,null,null,null,null,null,null,null,null,null,null,null,null,null,null,null,null,null,null,null,null,null,null,null,null,"※許可病床数：医療法第7条第2項の規定に基づき届け出をした病床の種別の病床数"]
["※稼働病床数：病床に応じた医師、看護師等が配置されるなどして、実際に利用している病床の数",null,null,null,null,null,null,null,null,null,null,null,null,null,null,null,null,null,null,null,null,null,null,null,null,null,null,null,null,null,null,null,null,null,null,null,"※稼働病床数：病床に応じた医師、看護師等が配置されるなどして、実際に利用している病床の数"]
["※一般病床数：(3)-2における機能を持つ病床を有する場合、内訳をご記入下さい。",null,null,null,null,null,null,null,null,null,null,null,null,null,null,null,null,null,null,null,null,null,null,null,null,null,null,null,null,null,null,null,null,null,null,null,"※一般病床数：(3)-2における機能を持つ病床を有する場合、内訳をご記入下さい。"]
["※療養病床数：介護療養病床を有する場合、(3)-3において療養病床の合計と内訳をご記入下さい。",null,null,null,null,null,null,null,null,null,null,null,null,null,null,null,null,null,null,null,null,null,null,null,null,null,null,null,null,null,null,null,null,null,null,null,"※療養病床数：介護療養病床を有する場合、(3)-3において療養病床の合計と内訳をご記入下さい。"]
[]
[]
[]
["(2)-2\n一般病床の内訳",null,null,null,null,null,"小児入院医療\n管理料適用病床",null,null,null,null,"緩和ケア病床",null,null,null,null,"回復期リハビリテーション病床",null,null,null,null,"地域包括ケア病床",null,null,null,null,null,null,null,null,null,null,null,null,null,null,"(2)-2\n一般病床の内訳",null,null,null,null,null,"小児入院医療\n管理料適用病床",null,null,null,null,"緩和ケア病床",null,null,null,null,"回復期リハビリテーション病床",null,null,null,null,"地域包括ケア病床",null,null,"一般病床"]
[null,null,null,"許可病床数",null,null,null,null,null,null,"床",null,null,null,null,"床",null,null,null,null,"床",null,null,null,null,"床",null,null,null,null,null,null,null,null,null,null,null,null,null,"許可病床数",null,null,{"$f":"IF(G453=\"\",\"\",G453)","v":""},null,null,null,"床",{"$f":"IF(L453=\"\",\"\",L453)","v":""},null,null,null,"床",{"$f":"IF(Q453=\"\",\"\",Q453)","v":""},null,null,null,"床",{"$f":"IF(V453=\"\",\"\",V453)","v":""},null,null,null,"床"]
[null,null,null,"稼働病床数",null,null,null,null,null,null,"床",null,null,null,null,"床",null,null,null,null,"床",null,null,null,null,"床",null,null,null,null,null,null,null,null,null,null,null,null,null,"稼働病床数",null,null,{"$f":"IF(G454=\"\",\"\",G454)","v":""},null,null,null,"床",{"$f":"IF(L454=\"\",\"\",L454)","v":""},null,null,null,"床",{"$f":"IF(Q454=\"\",\"\",Q454)","v":""},null,null,null,"床",{"$f":"IF(V454=\"\",\"\",V454)","v":""},null,null,null,"床"]
[null,null,null,"令和２年度末までに開設している場合にはチェックを付けてください",null,null,null,null,null,null,null,null,null,null,null,null,null,null,null,null,null,null,null,null,null,null,null,null,null,null,null,null,null,null,null,null,null,null,null,"平成29年度末までに開設して\nいる場合には印を記入",null,null,null,null,null,null,null,{"$f":"IF(OR($AI$454=1,$AI$454=TRUE),1,\"\")","v":""},null,null,null,null,{"$f":"IF(OR($AI$455=1,$AI$455=TRUE),1,\"\")","v":""},null,null,null,null,{"$f":"IF(OR($AI$456=1,$AI$456=TRUE),1,\"\")","v":""}]
[]
[]
[null,null,null,null,null,null,"障がい者施設等\n病床",null,null,null,null,"特殊疾患病床",null,null,null,null,"その他",null,null,null,null,null,null,null,null,null,null,null,null,null,null,null,null,null,null,null,null,null,null,null,null,null,"障がい者施設等\n病床",null,null,null,null,"特殊疾患病床",null,null,null,null,"その他"]
[null,null,null,"許可病床数",null,null,null,null,null,null,"床",null,null,null,null,"床",null,null,null,null,"床",null,null,null,null,null,null,null,null,null,null,null,null,null,null,null,null,null,null,"許可病床数",null,null,{"$f":"IF(G459=\"\",\"\",G459)","v":""},null,null,null,"床",{"$f":"IF(L459=\"\",\"\",L459)","v":""},null,null,null,"床",{"$f":"IF(Q459=\"\",\"\",Q459)","v":""},null,null,null,"床"]
[null,null,null,"稼働病床数",null,null,null,null,null,null,"床",null,null,null,null,"床",null,null,null,null,"床",null,null,null,null,null,null,null,null,null,null,null,null,null,null,null,null,null,null,"稼働病床数",null,null,{"$f":"IF(G460=\"\",\"\",G460)","v":""},null,null,null,"床",{"$f":"IF(L460=\"\",\"\",L460)","v":""},null,null,null,"床",{"$f":"IF(Q460=\"\",\"\",Q460)","v":""},null,null,null,"床"]
[]
[]
[]
["(2)-3\n療養病床の内訳",null,null,null,null,null,"総数",null,null,null,null,null,null,null,null,null,null,null,null,null,null,null,null,null,null,null,null,null,null,null,null,null,null,null,null,null,"(2)-3\n療養病床の内訳",null,null,null,null,null,"総数"]
[null,null,null,null,null,null,null,null,null,null,null,"うち介護型",null,null,null,null,"うち医療型",null,null,null,null,null,null,null,null,null,null,null,null,null,null,null,null,null,null,null,null,null,null,null,null,null,null,null,null,null,null,"うち介護型",null,null,null,null,"うち医療型"]
[null,null,null,null,null,null,null,null,null,null,null,null,null,null,null,null,null,null,null,null,null,"回復期リハビリテーション病床",null,null,null,null,"地域包括ケア病床",null,null,null,null,null,null,null,null,null,null,null,null,null,null,null,null,null,null,null,null,null,null,null,null,null,null,null,null,null,null,"回復期リハビリテーション病床",null,null,null,null,"地域包括ケア病床",null,null,"一般病床"]
[null,null,null,"許可病床数",null,null,null,null,null,null,"床",null,null,null,null,"床",null,null,null,null,"床",null,null,null,null,"床",null,null,null,null,"床",null,null,null,null,null,null,null,null,"許可病床数",null,null,{"$f":"IF(G467=\"\",\"\",G467)","v":""},null,null,null,"床",{"$f":"IF(L467=\"\",\"\",L467)","v":""},null,null,null,"床",{"$f":"IF(Q467=\"\",\"\",Q467)","v":""},null,null,null,"床",{"$f":"IF(V467=\"\",\"\",V467)","v":""},null,null,null,"床",{"$f":"IF(AA467=\"\",\"\",AA467)","v":""},null,null,null,"床"]
[null,null,null,"稼働病床数",null,null,null,null,null,null,"床",null,null,null,null,"床",null,null,null,null,"床",null,null,null,null,"床",null,null,null,null,"床",null,null,null,null,null,null,null,null,"稼働病床数",null,null,{"$f":"IF(G468=\"\",\"\",G468)","v":""},null,null,null,"床",{"$f":"IF(L468=\"\",\"\",L468)","v":""},null,null,null,"床",{"$f":"IF(Q468=\"\",\"\",Q468)","v":""},null,null,null,"床",{"$f":"IF(V468=\"\",\"\",V468)","v":""},null,null,null,"床",{"$f":"IF(AA468=\"\",\"\",AA468)","v":""},null,null,null,"床"]
[null,null,null,"令和２年度末までに開設して\nいる場合にはチェックを付けてください",null,null,null,null,null,null,null,null,null,null,null,null,null,null,null,null,null,null,null,null,null,null,null,null,null,null,null,null,null,null,null,null,null,null,null,"平成29年度末までに開設して\nいる場合には印を記入",null,null,null,null,null,null,null,{"$f":"IF(OR($AI$468=1,$AI$468=TRUE),1,\"\")","v":""},null,null,null,null,{"$f":"IF(OR($AI$469=1,$AI$469=TRUE),1,\"\")","v":""},null,null,null,null,{"$f":"IF(OR($AI$470=1,$AI$470=TRUE),1,\"\")","v":""}]
[]
[]
["\n(3)\n診療報酬の算定状況（該当するものにチェックを付けてください）\n\n※複数取得している場合は全てにチェックを付けてください。",null,null,"①一般病棟\n  入院基本料",null,null,null,null,null,null,null,"01.急性期一般入院料１",null,null,null,null,null,null,null,null,null,null,null,"06.急性期一般入院料６",null,null,null,null,null,null,null,null,null,null,null,null,"\n(3)\n診療報酬の算定状況（該当するものに○をご記入ください）\n\n※複数取得している場合は全てに○をご記入ください。",null,null,"①一般病棟\n  入院基本料",null,null,null,null,{"$f":"IF(OR($AI472=1,$AI472=TRUE),1,\"\")","v":""},null,null,"01.急性期一般入院料１",null,null,null,null,null,null,null,null,{"$f":"IF(OR($AJ472=1,$AJ472=TRUE),1,\"\")","v":""},null,null,"06.急性期一般入院料６"]
[null,null,null,null,null,null,null,null,null,null,null,"02.急性期一般入院料２",null,null,null,null,null,null,null,null,null,null,null,"07.急性期一般入院料７",null,null,null,null,null,null,null,null,null,null,null,null,null,null,null,null,null,null,null,null,{"$f":"IF(OR($AI473=1,$AI473=TRUE),1,\"\")","v":""},null,null,"02.急性期一般入院料２",null,null,null,null,null,null,null,null,{"$f":"IF(OR($AJ473=1,$AJ473=TRUE),1,\"\")","v":""},null,null,"07.急性期一般入院料７"]
[null,null,null,null,null,null,null,null,null,null,null,"03.急性期一般入院料３",null,null,null,null,null,null,null,null,null,null,null,"08.地域一般入院料１",null,null,null,null,null,null,null,null,null,null,null,null,null,null,null,null,null,null,null,null,"",null,null,"03.急性期一般入院料３",null,null,null,null,null,null,null,null,"",null,null,"08.地域一般入院料１"]
[null,null,null,null,null,null,null,null,null,null,null,"04.急性期一般入院料４",null,null,null,null,null,null,null,null,null,null,null,"09.地域一般入院料２",null,null,null,null,null,null,null,null,null,null,null,null,null,null,null,null,null,null,null,null,"",null,null,"04.急性期一般入院料４",null,null,null,null,null,null,null,null,"",null,null,"09.地域一般入院料２"]
[null,null,null,null,null,null,null,null,null,null,null,"05.急性期一般入院料５",null,null,null,null,null,null,null,null,null,null,null,"10.地域一般入院料３",null,null,null,null,null,null,null,null,null,null,null,null,null,null,null,null,null,null,null,null,"",null,null,"05.急性期一般入院料５",null,null,null,null,null,null,null,null,"",null,null,"10.地域一般入院料３"]
[null,null,null,"②療養病棟\n  入院基本料",null,null,null,null,null,null,null,"01.療養病棟入院基本料１",null,null,null,null,null,null,null,null,null,null,null,"03.その他",null,null,null,null,null,null,null,null,null,null,null,null,null,null,null,"②療養病棟\n  入院基本料",null,null,null,null,"",null,null,"01.療養病棟入院基本料１",null,null,null,null,null,null,null,null,"",null,null,"03.その他"]
[null,null,null,null,null,null,null,null,null,null,null,"02.療養病棟入院基本料２",null,null,null,null,null,null,null,null,null,null,null,null,null,null,null,null,null,null,null,null,null,null,null,null,null,null,null,null,null,null,null,null,"",null,null,"02.療養病棟入院基本料２"]
[null,null,null,"③精神病棟\n  入院基本料",null,null,null,null,null,null,null,"01.10対１入院基本料",null,null,null,null,null,null,null,null,null,null,null,"04.18対１入院基本料",null,null,null,null,null,null,null,null,null,null,null,null,null,null,null,"③精神病棟\n  入院基本料",null,null,null,null,"",null,null,"01.10対１入院基本料",null,null,null,null,null,null,null,null,{"$f":"IF(OR($AJ479=1,$AJ479=TRUE),1,\"\")","v":""},null,null,"04.18対１入院基本料"]
[null,null,null,null,null,null,null,null,null,null,null,"02.13対１入院基本料",null,null,null,null,null,null,null,null,null,null,null,"05.20対１入院基本料",null,null,null,null,null,null,null,null,null,null,null,null,null,null,null,null,null,null,null,null,"",null,null,"02.13対１入院基本料",null,null,null,null,null,null,null,null,"",null,null,"05.20対１入院基本料"]
[null,null,null,null,null,null,null,null,null,null,null,"03.15対１入院基本料",null,null,null,null,null,null,null,null,null,null,null,"06.その他",null,null,null,null,null,null,null,null,null,null,null,null,null,null,null,null,null,null,null,null,"",null,null,"03.15対１入院基本料",null,null,null,null,null,null,null,null,"",null,null,"06.その他（"]
[null,null,null,"④回復期リハビリ\n  テーション\n  病棟入院料",null,null,null,null,null,null,null,"01.回復期リハビリテーション\n　 病棟入院料１",null,null,null,null,null,null,null,null,null,null,null,"05.回復期リハビリテーション\n　 病棟入院料５",null,null,null,null,null,null,null,null,null,null,null,null,null,null,null,"④回復期リハビリ\n  テーション\n  病棟入院料",null,null,null,null,"",null,null,"01.回復期リハビリテーション\n　 病棟入院料１",null,null,null,null,null,null,null,null,"",null,null,"05.回復期リハビリテーション\n　 病棟入院料５"]
[null,null,null,null,null,null,null,null,null,null,null,"02.回復期リハビリテーション\n　 病棟入院料２",null,null,null,null,null,null,null,null,null,null,null,"06.回復期リハビリテーション\n　 病棟入院料６",null,null,null,null,null,null,null,null,null,null,null,null,null,null,null,null,null,null,null,null,"",null,null,"02.回復期リハビリテーション\n　 病棟入院料２",null,null,null,null,null,null,null,null,"",null,null,"06.回復期リハビリテーション\n　 病棟入院料６"]
[null,null,null,null,null,null,null,null,null,null,null,"03.回復期リハビリテーション\n　 病棟入院料３",null,null,null,null,null,null,null,null,null,null,null,"07.その他",null,null,null,null,null,null,null,null,null,null,null,null,null,null,null,null,null,null,null,null,"",null,null,"03.回復期リハビリテーション\n　 病棟入院料３",null,null,null,null,null,null,null,null,"",null,null,"07.その他"]
[null,null,null,null,null,null,null,null,null,null,null,"04.回復期リハビリテーション\n　 病棟入院料４",null,null,null,null,null,null,null,null,null,null,null,null,null,null,null,null,null,null,null,null,null,null,null,null,null,null,null,null,null,null,null,null,"",null,null,"04.回復期リハビリテーション\n　 病棟入院料４"]
[null,null,null,"⑤地域包括ケア\n  病棟入院料",null,null,null,null,null,null,null,"01.地域包括ケア病棟入院料１",null,null,null,null,null,null,null,null,null,null,null,"05.地域包括ケア入院医療管理料１",null,null,null,null,null,null,null,null,null,null,null,null,null,null,null,"⑤地域包括ケア\n  病棟入院料",null,null,null,null,"",null,null,"01.地域包括ケア病棟入院料１",null,null,null,null,null,null,null,null,{"$f":"IF(OR($AJ486=1,$AJ486=TRUE),1,\"\")","v":""},null,null,"05.地域包括ケア入院医療管理料１"]
[null,null,null,null,null,null,null,null,null,null,null,"02.地域包括ケア病棟入院料２",null,null,null,null,null,null,null,null,null,null,null,"06.地域包括ケア入院医療管理料２",null,null,null,null,null,null,null,null,null,null,null,null,null,null,null,null,null,null,null,null,"",null,null,"02.地域包括ケア病棟入院料２",null,null,null,null,null,null,null,null,"",null,null,"06.地域包括ケア入院医療管理料２"]
[null,null,null,null,null,null,null,null,null,null,null,"03.地域包括ケア病棟入院料３",null,null,null,null,null,null,null,null,null,null,null,"07.地域包括ケア入院医療管理料３",null,null,null,null,null,null,null,null,null,null,null,null,null,null,null,null,null,null,null,null,"",null,null,"03.地域包括ケア病棟入院料３",null,null,null,null,null,null,null,null,"",null,null,"07.地域包括ケア入院医療管理料３"]
[null,null,null,null,null,null,null,null,null,null,null,"04.地域包括ケア病棟入院料４",null,null,null,null,null,null,null,null,null,null,null,"08.地域包括ケア入院医療管理料４",null,null,null,null,null,null,null,null,null,null,null,null,null,null,null,null,null,null,null,null,"",null,null,"04.地域包括ケア病棟入院料４",null,null,null,null,null,null,null,null,"",null,null,"08.地域包括ケア入院医療管理料４"]
[null,null,null,"⑥その他",null,null,null,null,null,null,null,"01.救命救急入院料",null,null,null,null,null,null,null,null,null,null,null,"09.体制強化加算",null,null,null,null,null,null,null,null,null,null,null,null,null,null,null,"⑥その他",null,null,null,null,"",null,null,"01.救命救急入院料",null,null,null,null,null,null,null,null,"",null,null,"09.体制強化加算"]
[null,null,null,null,null,null,null,null,null,null,null,"02.特定集中治療室管理料",null,null,null,null,null,null,null,null,null,null,null,"10.入院時訪問指導加算",null,null,null,null,null,null,null,null,null,null,null,null,null,null,null,null,null,null,null,null,"",null,null,"02.特定集中治療室管理料",null,null,null,null,null,null,null,null,"",null,null,"10.入院時訪問指導加算"]
[null,null,null,null,null,null,null,null,null,null,null,"03.ハイケアユニット入院\n　 医療管理料",null,null,null,null,null,null,null,null,null,null,null,"11.慢性維持透析管理加算",null,null,null,null,null,null,null,null,null,null,null,null,null,null,null,null,null,null,null,null,"",null,null,"03.ハイケアユニット入院\n　 医療管理料",null,null,null,null,null,null,null,null,"",null,null,"11.慢性維持透析管理加算"]
[null,null,null,null,null,null,null,null,null,null,null,"04.脳卒中ケアユニット入院\n　 医療管理料",null,null,null,null,null,null,null,null,null,null,null,"12.在宅復帰機能強化加算",null,null,null,null,null,null,null,null,null,null,null,null,null,null,null,null,null,null,null,null,"",null,null,"04.脳卒中ケアユニット入院\n　 医療管理料",null,null,null,null,null,null,null,null,"",null,null,"12.在宅復帰機能強化加算"]
[null,null,null,null,null,null,null,null,null,null,null,"05.地域包括診療料",null,null,null,null,null,null,null,null,null,null,null,"13.在宅療養実績加算",null,null,null,null,null,null,null,null,null,null,null,null,null,null,null,null,null,null,null,null,"",null,null,"05.地域包括診療料",null,null,null,null,null,null,null,null,"",null,null,"13.在宅療養実績加算"]
[null,null,null,null,null,null,null,null,null,null,null,"06.介護支援連携指導料",null,null,null,null,null,null,null,null,null,null,null,"14.精神科急性期医師配置加算",null,null,null,null,null,null,null,null,null,null,null,null,null,null,null,null,null,null,null,null,"",null,null,"06.介護支援連携指導料",null,null,null,null,null,null,null,null,"",null,null,"14.精神科急性期医師配置加算"]
[null,null,null,null,null,null,null,null,null,null,null,"07.ADL維持向上等体制加算",null,null,null,null,null,null,null,null,null,null,null,"15.院内標準診療計画加算",null,null,null,null,null,null,null,null,null,null,null,null,null,null,null,null,null,null,null,null,{"$f":"IF(OR($AI496=1,$AI496=TRUE),1,\"\")","v":""},null,null,"07.ADL維持向上等体制加算",null,null,null,null,null,null,null,null,"",null,null,"15.院内標準診療計画加算"]
[null,null,null,null,null,null,null,null,null,null,null,"08.救急・在宅等支援病床初期加算",null,null,null,null,null,null,null,null,null,null,null,"16.精神保健福祉士配置加算",null,null,null,null,null,null,null,null,null,null,false,false,null,null,null,null,null,null,null,null,"",null,null,"08.救急・在宅等支援病床初期加算",null,null,null,null,null,null,null,null,"",null,null,"16.精神保健福祉士配置加算"]
[]
["問２ 従事者の状況（令和元年度および令和２年度決算期末時点）",null,null,null,null,null,null,null,null,null,null,null,null,null,null,null,null,null,null,null,null,null,null,null,null,null,null,null,null,null,null,null,null,null,null,null,"問２ 従事者の状況（平成３０年度決算期末時点）"]
["職種別の従事者数をご記入下さい。（※派遣職員は除く）",null,null,null,null,null,null,null,null,null,null,null,null,null,null,null,null,null,null,null,null,null,null,null,null,null,null,null,null,null,null,null,null,null,null,null,"職種別の従事者数をご記入下さい。（※派遣職員は除く）"]
[]
["職種",null,null,null,null,null,null,null,null,"従事者数(人）",null,null,null,null,null,"職種",null,null,null,null,null,null,null,null,null,null,null,"従事者数(人）",null,null,null,null,null,null,null,"職種",null,null,null,null,null,null,null,null,"従事者数(人）",null,null,null,null,null,"職種",null,null,null,null,null,null,null,null,null,null,null,"従事者数(人）"]
[null,null,null,null,null,null,null,null,null,"令和元年度",null,null,"令和２年度",null,null,null,null,null,null,null,null,null,null,null,null,null,null,"令和元年度",null,null,"令和２年度",null,null,null,null,null,null,null,null,null,null,null,null,null,"令和元年度",null,null,"令和２年度",null,null,null,null,null,null,null,null,null,null,null,null,null,null,"令和元年度",null,null,"令和２年度"]
["医師\n（歯科医師を除く）",null,null,"常勤",null,null,null,null,null,null,null,null,null,null,null,"薬剤師（常勤換算）",null,null,"常勤",null,null,null,null,null,null,null,null,null,null,null,null,null,null,null,null,"医師\n（歯科医師を除く）",null,null,"常勤",null,null,null,null,null,null,null,null,null,null,null,"薬剤師（常勤換算）",null,null,"常勤"]
[null,null,null,null,"うち研修医",null,null,null,null,null,null,null,null,null,null,"リハビリテーション専門職（常勤換算）\n（理学療法士、作業療法士、言語聴覚士）",null,null,"非常勤（常勤換算）",null,null,null,null,null,null,null,null,null,null,null,null,null,null,null,null,null,null,null,null,"うち研修医",null,null,null,null,null,null,null,null,null,null,"リハビリテーション専門職（常勤換算）\n（理学療法士、作業療法士、言語聴覚士）",null,null,"非常勤（常勤換算）"]
[null,null,null,"非常勤（常勤換算）",null,null,null,null,null,null,null,null,null,null,null,"社会福祉士（常勤換算）",null,null,"常勤",null,null,null,null,null,null,null,null,null,null,null,null,null,null,null,null,null,null,null,"非常勤（常勤換算）",null,null,null,null,null,null,null,null,null,null,null,"社会福祉士（常勤換算）",null,null,"常勤"]
["歯科医師（常勤換算）",null,null,null,null,null,null,null,null,null,null,null,null,null,null,"放射線技師（常勤換算）",null,null,"常勤",null,null,null,null,null,null,null,null,null,null,null,null,null,null,null,null,"歯科医師（常勤換算）",null,null,null,null,null,null,null,null,null,null,null,null,null,null,"放射線技師（常勤換算）",null,null,"常勤"]
["看護師",null,null,"常勤",null,null,null,null,null,null,null,null,null,null,null,"臨床検査技師（常勤換算）",null,null,"非常勤（常勤換算）",null,null,null,null,null,null,null,null,null,null,null,null,null,null,null,null,"看護師",null,null,"常勤",null,null,null,null,null,null,null,null,null,null,null,"臨床検査技師（常勤換算）",null,null,"非常勤（常勤換算）"]
[null,null,null,"非常勤（常勤換算）",null,null,null,null,null,null,null,null,null,null,null,"事務職員（常勤換算）",null,null,null,null,null,null,null,null,null,null,null,null,null,null,null,null,null,null,null,null,null,null,"非常勤（常勤換算）",null,null,null,null,null,null,null,null,null,null,null,"事務職員（常勤換算）"]
["准看護師",null,null,"常勤",null,null,null,null,null,null,null,null,null,null,null,"その他の職員（常勤換算）",null,null,null,null,null,null,null,null,null,null,null,null,null,null,null,null,null,null,null,"准看護師",null,null,"常勤",null,null,null,null,null,null,null,null,null,null,null,"その他の職員（常勤換算）"]
[null,null,null,"非常勤（常勤換算）",null,null,null,null,null,null,null,null,null,null,null,null,null,null,null,null,null,null,null,null,null,null,null,null,null,null,null,null,null,null,null,null,null,null,"非常勤（常勤換算）"]
[]
["※常勤は整数、非常勤は小数第一位までご記入下さい。",null,null,null,null,null,null,null,null,null,null,null,null,null,null,null,null,null,null,null,null,null,null,null,null,null,null,null,null,null,null,null,null,null,null,null,"※常勤は整数、非常勤は小数第一位までご記入下さい。"]
["※医師の従事者数には、指導医、前期研修医、後期研修医も含めた人数をご記入下さい。",null,null,null,null,null,null,null,null,null,null,null,null,null,null,null,null,null,null,null,null,null,null,null,null,null,null,null,null,null,null,null,null,null,null,null,"※医師の従事者数には、指導医、前期研修医、後期研修医も含めた人数をご記入下さい。"]
["※派遣職員については、従事者数に含めないで下さい。",null,null,null,null,null,null,null,null,null,null,null,null,null,null,null,null,null,null,null,null,null,null,null,null,null,null,null,null,null,null,null,null,null,null,null,"※派遣職員については、従事者数に含めないで下さい。"]
[]
[]
[null,"【参考：計算式及び記入方法について】",null,null,null,null,null,null,null,null,null,null,null,null,null,null,null,null,null,null,null,null,null,null,null,null,null,null,null,null,null,null,null,null,null,null,null,"【参考：計算式及び記入方法について】"]
[null,null,"・換算数は以下の計算式を用いて算出して下さい。 ",null,null,null,null,null,null,null,null,null,null,null,null,null,null,null,null,null,null,null,null,null,null,null,null,null,null,null,null,null,null,null,null,null,null,null,"・換算数は以下の計算式を用いて算出して下さい。 "]
[null,null,null,"従事者の１週間の勤務時間",null,null,null,null,null,null,null,null,null,null,null,null,null,null,null,null,null,null,null,null,null,null,null,null,null,null,null,null,null,null,null,null,null,null,null,"従事者の１週間の勤務時間"]
[null,null,null,"病院が定めている１週間の勤務時間 ",null,null,null,null,null,null,null,null,null,null,null,null,null,null,null,null,null,null,null,null,null,null,null,null,null,null,null,null,null,null,null,null,null,null,null,"病院が定めている１週間の勤務時間 "]
[]
[null,null,"ただし、１ヶ月に数回の勤務である場合は、以下の計算式を用いて算出して下さい。",null,null,null,null,null,null,null,null,null,null,null,null,null,null,null,null,null,null,null,null,null,null,null,null,null,null,null,null,null,null,null,null,null,null,null,"ただし、１ヶ月に数回の勤務である場合は、以下の計算式を用いて算出して下さい。"]
[null,null,null,"従事者の１ヶ月の勤務時間 ",null,null,null,null,null,null,null,null,null,null,null,null,null,null,null,null,null,null,null,null,null,null,null,null,null,null,null,null,null,null,null,null,null,null,null,"従事者の１ヶ月の勤務時間 "]
[null,null,null,"病院が定めている１週間の勤務時間×４（週）",null,null,null,null,null,null,null,null,null,null,null,null,null,null,null,null,null,null,null,null,null,null,null,null,null,null,null,null,null,null,null,null,null,null,null,"病院が定めている１週間の勤務時間×４（週）"]
[]
[null,null,"・従事者の勤務時間は実態に応じて算出して下さい。",null,null,null,null,null,null,null,null,null,null,null,null,null,null,null,null,null,null,null,null,null,null,null,null,null,null,null,null,null,null,null,null,null,null,null,"・従事者の勤務時間は実態に応じて算出して下さい。"]
[null,null,"・上記の計算式によって得られた数値を、小数点以下第２位を四捨五入して、小数点第１位まで計上して\n　下さい。得られた結果が0.1 に満たない場合は0.1 と計上して下さい。",null,null,null,null,null,null,null,null,null,null,null,null,null,null,null,null,null,null,null,null,null,null,null,null,null,null,null,null,null,null,null,null,null,null,null,"・上記の計算式によって得られた数値を、小数点以下第２位を四捨五入して、小数点第１位まで計上して\n　下さい。得られた結果が0.1 に満たない場合は0.1 と計上して下さい。"]
[]
[]
[]
["問３　外来患者の医薬分業状況（令和２年度決算期末日時点）",null,null,null,null,null,null,null,null,null,null,null,null,null,null,null,null,null,null,null,null,null,null,null,null,null,null,null,null,null,null,null,null,null,null,null,"問４　外来患者の医薬分業状況（平成３０年度決算期末日時点）"]
[null,"医薬分業の実施状況に関して、該当するものに○をご記入下さい。",null,null,null,null,null,null,null,null,null,null,null,null,null,null,null,null,null,null,null,null,null,null,null,null,null,null,null,null,null,null,null,null,null,null,null,"医薬分業の実施状況に関して、該当するものに○をご記入下さい。"]
[null,null,null,null,"01.原則院外処方（一部院内処方）実施",null,null,null,null,null,null,null,null,null,null,null,null,null,"03.院外及び院内処方を実施",null,null,null,null,null,null,null,null,null,null,null,null,null,null,null,null,null,null,{"$f":"IF($AJ$534=VALUE(LEFT(AO534,2)),1,\"\")","v":""},null,null,"01.原則院外処方（一部院内処方）実施",null,null,null,null,null,null,null,null,null,null,{"$f":"IF($AJ$534=VALUE(LEFT(BC534,2)),1,\"\")","v":""},null,null,"03.院外及び院内処方を実施",null,null,null,null,null,null,null,null,null,null,null,null,null,0]
[null,null,null,null,"02.原則院内処方（一部院外処方）実施",null,null,null,null,null,null,null,null,null,null,null,null,null,null,null,null,null,null,null,null,null,null,null,null,null,null,null,null,null,null,null,null,{"$f":"IF($AJ$534=VALUE(LEFT(AO535,2)),1,\"\")","v":""},null,null,"02.原則院内処方（一部院外処方）実施"]
[null,"※年度途中に移行した場合は、期間の長い方を選択します。",null,null,null,null,null,null,null,null,null,null,null,null,null,null,null,null,null,null,null,null,null,null,null,null,null,null,null,null,null,null,null,null,null,null,null,"※年度途中に移行した場合は、期間の長い方を選択します。"]
[]
["問４　外部評価の認定・取得状況（令和２年度決算期末日時点）",null,null,null,null,null,null,null,null,null,null,null,null,null,null,null,null,null,null,null,null,null,null,null,null,null,null,null,null,null,null,null,null,null,null,null,"問５　外部評価の認定・取得状況（平成３０年度決算期末日時点）"]
[null,"外部評価の受審状況に関して、該当するものを選択して下さい。（複数回答可）",null,null,null,null,null,null,null,null,null,null,null,null,null,null,null,null,null,null,null,null,null,null,null,null,null,null,null,null,null,null,null,null,null,null,null,"外部評価の受審状況に関して、該当するものに○をご記入下さい。"]
[null,null,null,null,"01.病院機能評価の認定を受けている",null,null,null,null,null,null,null,null,null,null,null,null,"03.その他の外部評価  （",null,null,null,null,null,null,null,null,null,null,null,null,"）",null,null,null,null,null,null,{"$f":"IF($AJ540=TRUE,1,\"\")","v":""},null,null,"01.病院機能評価の認定を受けている",null,null,null,null,null,null,null,null,null,{"$f":"IF($AK540=TRUE,1,\"\")","v":""},null,null,"03.その他の外部評価（",null,null,null,null,null,null,{"$f":"Y540","v":0},null,null,null,null,null,"）",null,0]
[null,null,null,null,"02.ISOを取得している",null,null,null,null,null,null,null,null,null,null,null,null,"04.取得してないまたは認定を受けていない",null,null,null,null,null,null,null,null,null,null,null,null,null,null,null,null,null,null,null,{"$f":"IF($AJ541=TRUE,1,\"\")","v":""},null,null,"02.ISOを取得している",null,null,null,null,null,null,null,null,null,{"$f":"IF($AK541=TRUE,1,\"\")","v":""},null,null,"04.取得してないまたは認定を受けていない"]
[]
["問５．今回ご協力をお願いした「病院経営管理指標」は医療機関の質的向上、\n　　　健全な経営の安定化を図ることを目的とし、平成16年度分以降、厚生労働省のホームページに\n　　　調査結果を掲載しております。\n\n　　　貴院において、この「病院経営管理指標」を閲覧したり利用したことがありますか。",null,null,null,null,null,null,null,null,null,null,null,null,null,null,null,null,null,null,null,null,null,null,null,null,null,null,null,null,null,null,null,null,null,null,null,"問６．今回ご協力をお願いした「病院経営管理指標」は医療機関の質的向上、\n　　　健全な経営の安定化を図ることを目的とし、平成16年度分以降、厚生労働省のホームページに\n　　　調査結果を掲載しております。\n\n　　　貴院において、この「病院経営管理指標」を閲覧したり利用したことがありますか。"]
[null,null,null,null,null,null,null,"１．閲覧・利用したことがある",null,null,null,null,null,null,null,null,null,null,null,null,null,null,null,null,null,null,null,null,null,null,null,null,null,null,null,null,null,null,null,null,{"$f":"IF($AJ$544=VALUE(LEFT(AR544,2)),1,\"\")","v":""},null,null,"１．閲覧・利用したことがある"]
[null,null,null,null,null,null,null,"２．閲覧・利用したことがない",null,null,null,null,null,null,null,null,null,null,null,null,null,null,null,null,null,null,null,null,null,null,null,null,null,null,null,null,null,null,null,null,{"$f":"IF($AJ$140=VALUE(LEFT(AR545,2)),1,\"\")","v":""},null,null,"２．閲覧・利用したことがない"]
[null,null,"　　　　※　閲覧・利用の目的・程度は問いません",null,null,null,null,null,null,null,null,null,null,null,null,null,null,null,null,null,null,null,null,null,null,null,null,null,null,null,null,null,null,null,null,null,null,null,"　　　　※　閲覧・利用の目的・程度は問いません"]
[]
[null,"以上で設問は終わりです。\nメール（宛先：survey@aris-ri.jp）で、調査票をお送り下さい。\nご多忙の中、調査にご協力賜わり、誠にありがとうございました。",null,null,null,null,null,null,null,null,null,null,null,null,null,null,null,null,null,null,null,null,null,null,null,null,null,null,null,null,null,null,null,null,null,null,null,"以上で設問は終わりです。\nメール（宛先：survey@aris-ri.jp）又は同封の返信用封筒で、\n調査票をお送り下さい。\nご多忙の中、調査にご協力賜わり、誠にありがとうございました。"]
[]
[]
[]
[]
[]
[]
[]
[]
[]
[]
[]
[]
[]
[]
[]
[]
[null,null,null,null,null,null,null,null,null,null,null,null,null,null,null,null,null,null,null,null,null,null,null,null,null,null,null,null,null,null,null,null,null,null,false]

{"sheet":"data","index":2,"n_rows":5,"n_cols":301,"rows_kept":5,"cut":false,"hidden":true,"merged":[]}
["未収金に関する調査",null,null,null,null,null,null,null,null,null,null,null,null,null,null,null,null,null,null,null,null,null,null,null,null,null,null,null,null,null,null,null,null,null,null,null,null,null,null,null,null,null,null,null,null,null,null,null,null,null,null,null,null,null,null,null,null,null,null,null,null,null,null,null,null,null,null,null,null,null,null,null,null,"病院経営管理指標調査票【財務票】",null,null,null,null,null,null,null,null,null,null,null,null,null,null,null,null,null,null,null,null,null,null,null,null,null,null,null,null,null,null,null,null,null,null,null,null,null,null,null,null,null,null,null,null,null,null,null,null,null,null,null,null,null,null,null,null,null,null,null,null,null,null,null,null,null,null,null,null,null,null,null,null,null,null,null,null,null,null,null,null,null,null,null,null,null,null,null,null,null,null,null,null,null,null,null,null,null,null,null,"病院経営管理指標調査票【概況票】"]
["問1",{"$f":"A2","v":"問1"},{"$f":"B2","v":"問1"},"問1","問2","問3",{"$f":"F2","v":"問3"},{"$f":"G2","v":"問3"},"問3","問3","問3","問3","問3","問3","問3","問3","問3","問3","問4","問4","問4","問4","問4","問4","問4","問4","問4","問4","問4","問4","問4","問4","問4","問4","問5","問5","問5","問5","問5","問5","問5","問5","問5","問5","問5","問5","問5","問5","問5","問5","問6","問6","問6","問6","問6","問6",null,"問7","問8",{"$f":"BG2","v":"問8"},"問8","問8","問8","問8","問9","問9","問9","問9","問9","問9","問9","問9","問9","貸借対照表_決算期末日","Ⅰ　流動資産（１～７の合計）",null,null,null,null,null,null,null,"Ⅱ　固定資産（１～３の合計）",null,null,null,null,null,null,null,null,null,null,null,null,"資産合計（Ⅰ＋Ⅱ）","Ⅲ　流動負債（１～６の合計）",null,null,null,null,null,null,"Ⅳ　固定負債（１～４の合計）",null,null,null,null,"負債の部合計（Ⅲ＋Ⅳ）","Ⅴ純資産合計（１～３の合計）",null,null,null,null,"負債及び純資産合計（Ⅲ十Ⅳ+Ⅴ）","減価償却累計額","損益計算書_期初","損益計算書_期末","Ⅰ　医業収益（１～６の合計）",null,null,null,null,null,null,"Ⅱ　医業外収益（１～３の合計）",null,null,null,"Ⅲ　臨時収益","Ⅳ　医業費用（１～９の合計）",null,null,null,null,null,null,null,null,null,null,null,null,null,null,null,null,null,null,null,null,null,null,null,null,null,"医業利益（損失）（I-IV）","Ⅴ　医業外費用（１～２の合計）",null,null,"経常利益（損失）（医業利益+Ⅱ－V）","Ⅵ　臨時費用 ※7","税引前当期純利益（純損失）（経常利益+Ⅲ-VI）","過去２年度分の医業収益・費用及び固定資産等の状況",null,null,null,null,null,null,null,null,null,"施設の概況",null,null,null,null,null,null,null,null,null,null,null,null,null,null,null,null,null,null,null,null,null,null,null,null,null,null,null,null,null,null,null,null,null,null,null,null,null,null,null,null,null,null,null,null,null,null,null,null,null,null,null,null,null,null,null,"診療報酬の算定状況",null,null,null,null,null,null,null,null,null,null,null,null,null,null,null,null,null,null,null,null,null,null,null,null,null,null,null,null,null,null,null,null,null,null,null,null,null,null,null,null,null,null,null,null,null,null,null,null,null,"従事者の状況",null,null,null,null,null,null,null,null,null,null,null,null,null,null,"外来患者の医薬分業","外部評価の認定・取得",null,null,null,null,"閲覧したり利用"]
["（１）","その他","（２）-①","（２）-②",null,"①","②","③","④","⑤","⑥","⑥_初診","⑦","⑦_初診","⑧","⑨","⑩","⑪","①_ 10月","①_10外来","①_10入院","①_10救急","①_ 11月","①_11外来","①_11入院","①_11救急","②_ 10月","②_10外来","②_10入院","②_10救急","②_ 11月","②_11外来","②_11入院","②_11救急","①_ 10月","①_10外来","①_10入院","①_10救急","①_ 11月","①_11外来","①_11入院","①_11救急","②_ 10月","②_10外来","②_10入院","②_10救急","②_ 11月","②_11外来","②_11入院","②_11救急",-1,-2,-3,-4,-5,-6,null,null,"①_10月","①_11月","②_10月","②_11月","③_10月","③_11月","病院名","所在地","記入者_氏名","記入者_カナ","記入者_部署","記入者_TEL","記入者_FAX","記入者_Mail","調査結果送付希望",null,null,"１．現金・預金","２．医業未収金　※1","３．その他未収金","４．有価証券","５．たな卸資産　※2","６．短期貸付金","７．その他の流動資産",null,"１．有形固定資産((1)～(4)の合計)",null,null,null,null,"２．無形固定資産　※5","３．その他の資産((１)～(5)の合計)",null,null,null,null,null,null,null,"１．未払費用・未払金　※7","２．短期借入金　※8","３．短期の引当金","４．未払税金　※9","５．前受収益","６．その他の流動負債",null,"１．長期借入金　※8","２．長期未払金","３．退職給付引当金","４．その他の固定負債",null,null,"１．出資金","２．利益剰余金",null,"３．その他",null,null,null,null,null,"１．入院診療収益","２．室料差額収益","３．外来診療収益","４．保健予防活動収益","５．その他の医業収益","６．保険等査定減　※1",null,"１．受取利息及び配当金","２．補助金収益","３．その他の医業外収益",null,null,"１．材料費((1)～(3)の合計)",null,null,null,"２．給与費((1)～(4)の合計)",null,null,null,null,null,null,null,null,null,null,"３．委託費","４．設備関係費((1)＋(2))",null,null,"５．研究研修費","６．経費","７．控除対象外消費税等負担額","８．本部費配賦額",null,"９．その他",null,null,"１．支払利息","２．その他の医業外費用 ※4※6",null,null,null,"平成30",null,null,null,null,"平成29",null,null,null,null,"（1）",null,null,null,null,null,null,null,null,null,null,null,null,null,"（２）",null,null,null,null,null,null,null,null,null,null,null,"(2)-2一般病床の内訳",null,null,null,null,null,null,null,null,null,null,null,null,null,null,null,null,"(2)-3療養病床の内訳",null,null,null,null,null,null,null,null,null,null,null,null,"①一般病棟\n  入院基本料",null,null,null,null,null,null,null,null,null,"②療養病棟\n  入院基本料",null,null,"③精神病棟\n  入院基本料",null,null,null,null,null,"④回復期リハビリ\n  テーション\n  病棟入院料",null,null,null,null,null,null,"⑤地域包括ケア\n  病棟入院料",null,null,null,null,null,null,null,"⑥その他",null,null,null,null,null,null,null,null,null,null,null,null,null,null,null,"医師",null,null,"歯科医師","看護師",null,"准看護師",null,"薬剤師（常勤換算）","リハビリテーション専門職（常勤換算）\n（理学療法士、作業療法士、言語聴覚士）","社会福祉士（常勤換算）","放射線技師（常勤換算）","臨床検査技師（常勤換算）","事務職員（常勤換算）","その他の職員（常勤換算）",null,1,2,3,4,"その他"]
[{"$f":"A2&A3","v":"問1（１）"},{"$f":"B2&B3","v":"問1その他"},{"$f":"C2&C3","v":"問1（２）-①"},"問1（２）-②","問2","問3①","問3②","問3③","問3④","問3⑤","問3⑥","問3⑥_初診","問3⑦","問3⑦_初診","問3⑧","問3⑨","問3⑩","問3⑪","問4①_ 10月","問4①_10外来","問4①_10入院","問4①_10救急","問4①_ 11月","問4①_11外来","問4①_11入院","問4①_11救急","問4②_ 10月","問4②_10外来","問4②_10入院","問4②_10救急","問4②_ 11月","問4②_11外来","問4②_11入院","問4②_11救急","問5①_ 10月","問5①_10外来","問5①_10入院","問5①_10救急","問5①_ 11月","問5①_11外来","問5①_11入院","問5①_11救急","問5②_ 10月","問5②_10外来","問5②_10入院","問5②_10救急","問5②_ 11月","問5②_11外来","問5②_11入院","問5②_11救急","問6-1",{"$f":"AZ2&AZ3","v":"問6-2"},{"$f":"BA2&BA3","v":"問6-3"},{"$f":"BB2&BB3","v":"問6-4"},{"$f":"BC2&BC3","v":"問6-5"},{"$f":"BD2&BD3","v":"問6-6"},"その他","問7",{"$f":"BG2&BG3","v":"問8①_10月"},{"$f":"BH2&BH3","v":"問8①_11月"},{"$f":"BI2&BI3","v":"問8②_10月"},{"$f":"BJ2&BJ3","v":"問8②_11月"},{"$f":"BK2&BK3","v":"問8③_10月"},{"$f":"BL2&BL3","v":"問8③_11月"},{"$f":"BM2&BM3","v":"問9病院名"},{"$f":"BN2&BN3","v":"問9所在地"},{"$f":"BO2&BO3","v":"問9記入者_氏名"},{"$f":"BP2&BP3","v":"問9記入者_カナ"},{"$f":"BQ2&BQ3","v":"問9記入者_部署"},{"$f":"BR2&BR3","v":"問9記入者_TEL"},{"$f":"BS2&BS3","v":"問9記入者_FAX"},{"$f":"BT2&BT3","v":"問9記入者_Mail"},{"$f":"BU2&BU3","v":"問9調査結果送付希望"},null,null,null,null,null,null,null,null,null,null,null,"(1)建物 ※3","(2)備品 ※3","(3)土地","(4)その他の有形固定資産 ※3※4",null,null,"(1)有価証券","(2)長期貸付金","(3)役員従業員長期貸付金","(4)他会計長期貸付金","(5)その他の固定資産　※6",null,null,null,null,null,null,null,null,null,null,null,null,null,null,null,null,null,"うち繰越利益剰余金",null,null,null,null,null,null,null,null,null,null,null,null,null,null,null,null,null,null,null,"(1)医薬品費","(2)診療材料費","(3)その他の材料費",null,"(1)常勤職員給料・賞与(①～③の合計) ※2","①医師給料・賞与(歯科医師を除く)","②看護師給料・賞与 ※3","③その他給料・賞与(歯科医師を含む) ※4","(2)非常勤職員給料・賞与(①～③合計) ※2","①医師給料・賞与(歯科医師を除く)","②看護師給料・賞与 ※3","③その他給料・賞与(歯科医師を含む) ※4","(3)退職給付費用","(4)法定福利費",null,null,"(1)減価償却費","(2)その他の設備関係費 ※5",null,null,null,null,"うち役員報酬",null,null,null,null,null,null,null,null,"医業収益","医業費用","医業外収益","医業外費用","固定資産額","医業収益","医業費用","医業外収益","医業外費用","固定資産額",1,{"$f":"FR4+1","v":2},{"$f":"FS4+1","v":3},4,5,6,7,8,9,10,11,{"$f":"GB4+1","v":12},{"$f":"GC4+1","v":13},{"$f":"GD4+1","v":14},"許_総数","許_精神","許_感染","許_結核","許_一般","許_療養","稼_総数","稼_精神","稼_感染","稼_結核","稼_一般","稼_療養","許_小児","許_緩和","許_回復","許_地域","許_障害","許_特殊","許_その他","稼_小児","稼_緩和","稼_回復","稼_地域","稼_障害","稼_特殊","稼_その他","H29まで開設_介護","H29まで開設_医療","H29まで開設_回復","許_総数","許_介護","許_医療","許_回復","許_地域","稼_総数","稼_介護","稼_医療","稼_回復","稼_地域","H29まで開設_介護","H29まで開設_医療","H29まで開設_回復","01.急性期一般入院料１","02.急性期一般入院料２","03.急性期一般入院料３","04.急性期一般入院料４","05.急性期一般入院料５","06.急性期一般入院料６","07.急性期一般入院料７","08.地域一般入院料１","09.地域一般入院料２","10.地域一般入院料３","01.療養病棟入院基本料１","02.療養病棟入院基本料２","03.その他","01.10対１入院基本料","02.13対１入院基本料","03.15対１入院基本料","04.18対１入院基本料","05.20対１入院基本料","06.その他（","01.回復期リハビリテーション\n　 病棟入院料１","02.回復期リハビリテーション\n　 病棟入院料２","03.回復期リハビリテーション\n　 病棟入院料３","04.回復期リハビリテーション\n　 病棟入院料４","05.回復期リハビリテーション\n　 病棟入院料５","06.回復期リハビリテーション\n　 病棟入院料６","07.その他","01.地域包括ケア病棟入院料１","02.地域包括ケア病棟入院料２","03.地域包括ケア病棟入院料３","04.地域包括ケア病棟入院料４","05.地域包括ケア入院医療管理料１","06.地域包括ケア入院医療管理料２","07.地域包括ケア入院医療管理料３","08.地域包括ケア入院医療管理料４","01.救命救急入院料","02.特定集中治療室管理料","03.ハイケアユニット入院\n　 医療管理料","04.脳卒中ケアユニット入院\n　 医療管理料","05.地域包括診療料","06.介護支援連携指導料","07.ADL維持向上等体制加算","08.救急・在宅等支援病床初期加算","09.体制強化加算","10.入院時訪問指導加算","11.慢性維持透析管理加算","12.在宅復帰機能強化加算","13.在宅療養実績加算","14.精神科急性期医師配置加算","15.院内標準診療計画加算","16.精神保健福祉士配置加算","常勤","うち研修医","非常勤",null,"常勤","非常勤","常勤","非常勤"]
[{"$f":"病院経営管理指標等調査!$AI$52","v":0},{"$f":"IF(A5=25,病院経営管理指標等調査!$U$63,\"\")","v":""},{"$f":"病院経営管理指標等調査!$AI$74","v":0},{"$f":"病院経営管理指標等調査!$AJ$74","v":0},{"$f":"病院経営管理指標等調査!$AK$82","v":""},{"$f":"病院経営管理指標等調査!$AU$91","v":""},{"$f":"病院経営管理指標等調査!$AU$92","v":""},{"$f":"病院経営管理指標等調査!$AU$93","v":""},{"$f":"病院経営管理指標等調査!$AU$94","v":""},{"$f":"病院経営管理指標等調査!$AU$95","v":""},{"$f":"病院経営管理指標等調査!$AU$96","v":""},{"$f":"病院経営管理指標等調査!$AU$97","v":""},{"$f":"病院経営管理指標等調査!$AU$98","v":""},{"$f":"病院経営管理指標等調査!$AU$99","v":""},{"$f":"病院経営管理指標等調査!$AU$100","v":""},{"$f":"病院経営管理指標等調査!$AU$101","v":""},{"$f":"病院経営管理指標等調査!$AU$102","v":""},{"$f":"病院経営管理指標等調査!$AU$103","v":""},{"$f":"病院経営管理指標等調査!$AP$130","v":""},{"$f":"病院経営管理指標等調査!$AP$131","v":""},{"$f":"病院経営管理指標等調査!$AP$132","v":""},{"$f":"病院経営管理指標等調査!$AP$133","v":""},{"$f":"病院経営管理指標等調査!$AP$134","v":""},{"$f":"病院経営管理指標等調査!$AP$135","v":""},{"$f":"病院経営管理指標等調査!$AP$136","v":""},{"$f":"病院経営管理指標等調査!$AP$137","v":""},{"$f":"病院経営管理指標等調査!$AX$130","v":""},{"$f":"病院経営管理指標等調査!$AX$131","v":""},{"$f":"病院経営管理指標等調査!$AX$132","v":""},{"$f":"病院経営管理指標等調査!$AX$133","v":""},{"$f":"病院経営管理指標等調査!$AX$134","v":""},{"$f":"病院経営管理指標等調査!$AX$135","v":""},{"$f":"病院経営管理指標等調査!$AX$136","v":""},{"$f":"病院経営管理指標等調査!$AX$137","v":""},{"$f":"病院経営管理指標等調査!$AP$141","v":""},{"$f":"病院経営管理指標等調査!$AP$142","v":""},{"$f":"病院経営管理指標等調査!$AP$143","v":""},{"$f":"病院経営管理指標等調査!$AP$144","v":""},{"$f":"病院経営管理指標等調査!$AP$145","v":""},{"$f":"病院経営管理指標等調査!$AP$146","v":""},{"$f":"病院経営管理指標等調査!$AP$147","v":""},{"$f":"病院経営管理指標等調査!$AP$148","v":""},{"$f":"病院経営管理指標等調査!$AX$141","v":""},{"$f":"病院経営管理指標等調査!$AX$142","v":""},{"$f":"病院経営管理指標等調査!$AX$143","v":""},{"$f":"病院経営管理指標等調査!$AX$144","v":""},{"$f":"病院経営管理指標等調査!$AX$145","v":""},{"$f":"病院経営管理指標等調査!$AX$146","v":""},{"$f":"病院経営管理指標等調査!$AX$147","v":""},{"$f":"病院経営管理指標等調査!$AX$148","v":""},{"$f":"IF(病院経営管理指標等調査!$AI$151=TRUE,1,0)","v":0},{"$f":"IF(病院経営管理指標等調査!$AI$152=TRUE,1,0)","v":0},{"$f":"IF(病院経営管理指標等調査!$AI$153=TRUE,1,0)","v":0},{"$f":"IF(病院経営管理指標等調査!$AI$154=TRUE,1,0)","v":0},{"$f":"IF(病院経営管理指標等調査!$AI$155=TRUE,1,0)","v":0},{"$f":"IF(病院経営管理指標等調査!$AI$156=TRUE,1,0)","v":0},{"$f":"病院経営管理指標等調査!$AR$156","v":0},{"$f":"病院経営管理指標等調査!$AI$161","v":0},{"$f":"病院経営管理指標等調査!$AP$167","v":""},{"$f":"病院経営管理指標等調査!$AP$168","v":""},{"$f":"病院経営管理指標等調査!$AX$167","v":""},{"$f":"病院経営管理指標等調査!$AX$168","v":""},{"$f":"病院経営管理指標等調査!$BF$167","v":""},{"$f":"病院経営管理指標等調査!$BF$168","v":""},{"$f":"病院経営管理指標等調査!$AN$171","v":""},{"$f":"病院経営管理指標等調査!$AN$174","v":""},{"$f":"病院経営管理指標等調査!$AQ$178","v":""},{"$f":"病院経営管理指標等調査!$AQ$177","v":""},{"$f":"病院経営管理指標等調査!$BC$178","v":""},{"$f":"病院経営管理指標等調査!$AQ$180","v":""},{"$f":"病院経営管理指標等調査!$BC$180","v":""},{"$f":"病院経営管理指標等調査!$AQ$182","v":""},{"$f":"IF(病院経営管理指標等調査!$AI$184=1,\"Yes\",\"\")","v":""},{"$f":"\"平成\"&病院経営管理指標等調査!J242&\"年\"&病院経営管理指標等調査!M242&\"月\"&病院経営管理指標等調査!P242&\"日\"","v":"平成年月日"},{"$f":"病院経営管理指標等調査!$N$251","v":0},{"$f":"病院経営管理指標等調査!$N$252","v":0},{"$f":"病院経営管理指標等調査!$N$253","v":0},{"$f":"病院経営管理指標等調査!$N$254","v":0},{"$f":"病院経営管理指標等調査!$N$255","v":0},{"$f":"病院経営管理指標等調査!$N$256","v":0},{"$f":"病院経営管理指標等調査!$N$257","v":0},{"$f":"病院経営管理指標等調査!$N$258","v":0},{"$f":"病院経営管理指標等調査!$N$259","v":0},{"$f":"病院経営管理指標等調査!$N$260","v":0},{"$f":"病院経営管理指標等調査!$N$261","v":0},{"$f":"病院経営管理指標等調査!$N$262","v":0},{"$f":"病院経営管理指標等調査!$N$263","v":0},{"$f":"病院経営管理指標等調査!$N$264","v":0},{"$f":"病院経営管理指標等調査!$N$265","v":0},{"$f":"病院経営管理指標等調査!$N$266","v":0},{"$f":"病院経営管理指標等調査!$N$267","v":0},{"$f":"病院経営管理指標等調査!$N$268","v":0},{"$f":"病院経営管理指標等調査!$N$269","v":0},{"$f":"病院経営管理指標等調査!$N$270","v":0},{"$f":"病院経営管理指標等調査!$N$271","v":0},{"$f":"病院経営管理指標等調査!$N$272","v":0},{"$f":"病院経営管理指標等調査!$AC$251","v":0},{"$f":"病院経営管理指標等調査!$AC$252","v":0},{"$f":"病院経営管理指標等調査!$AC$253","v":0},{"$f":"病院経営管理指標等調査!$AC$254","v":0},{"$f":"病院経営管理指標等調査!$AC$255","v":0},{"$f":"病院経営管理指標等調査!$AC$256","v":0},{"$f":"病院経営管理指標等調査!$AC$257","v":0},{"$f":"病院経営管理指標等調査!$AC$259","v":0},{"$f":"病院経営管理指標等調査!$AC$260","v":0},{"$f":"病院経営管理指標等調査!$AC$261","v":0},{"$f":"病院経営管理指標等調査!$AC$262","v":0},{"$f":"病院経営管理指標等調査!$AC$263","v":0},{"$f":"病院経営管理指標等調査!$AC$264","v":0},{"$f":"病院経営管理指標等調査!$AC$266","v":0},{"$f":"病院経営管理指標等調査!$AC$267","v":0},{"$f":"病院経営管理指標等調査!$AC$268","v":0},{"$f":"病院経営管理指標等調査!$AC$269","v":0},{"$f":"病院経営管理指標等調査!$AC$270","v":0},{"$f":"病院経営管理指標等調査!$AC$272","v":0},{"$f":"病院経営管理指標等調査!$K$275","v":0},{"$f":"\"平成\"&病院経営管理指標等調査!J288&\"年\"&病院経営管理指標等調査!M288&\"月\"&病院経営管理指標等調査!P288&\"日\"","v":"平成年月日"},{"$f":"\"平成\"&病院経営管理指標等調査!V288&\"年\"&病院経営管理指標等調査!Y288&\"月\"&病院経営管理指標等調査!AB288&\"日\"","v":"平成年月日"},{"$f":"病院経営管理指標等調査!$L$296","v":0},{"$f":"病院経営管理指標等調査!$L$297","v":0},{"$f":"病院経営管理指標等調査!$L$298","v":0},{"$f":"病院経営管理指標等調査!$L$299","v":0},{"$f":"病院経営管理指標等調査!$L$300","v":0},{"$f":"病院経営管理指標等調査!$L$301","v":0},{"$f":"病院経営管理指標等調査!$L$302","v":0},{"$f":"病院経営管理指標等調査!$L$323","v":0},{"$f":"病院経営管理指標等調査!$L$324","v":0},{"$f":"病院経営管理指標等調査!$L$325","v":0},{"$f":"病院経営管理指標等調査!$L$326","v":0},{"$f":"病院経営管理指標等調査!$L$327","v":0},{"$f":"病院経営管理指標等調査!$AA$296","v":0},{"$f":"病院経営管理指標等調査!$AA$297","v":0},{"$f":"病院経営管理指標等調査!$AA$298","v":0},{"$f":"病院経営管理指標等調査!$AA$299","v":0},{"$f":"病院経営管理指標等調査!$AA$300","v":0},{"$f":"病院経営管理指標等調査!$AA$301","v":0},{"$f":"病院経営管理指標等調査!$AA$302","v":0},{"$f":"病院経営管理指標等調査!$AA$303","v":0},{"$f":"病院経営管理指標等調査!$AA$304","v":0},{"$f":"病院経営管理指標等調査!$AA$305","v":0},{"$f":"病院経営管理指標等調査!$AA$306","v":0},{"$f":"病院経営管理指標等調査!$AA$307","v":0},{"$f":"病院経営管理指標等調査!$AA$308","v":0},{"$f":"病院経営管理指標等調査!$AA$309","v":0},{"$f":"病院経営管理指標等調査!$AA$310","v":0},{"$f":"病院経営管理指標等調査!$AA$311","v":0},{"$f":"病院経営管理指標等調査!$AA$312","v":0},{"$f":"病院経営管理指標等調査!$AA$313","v":0},{"$f":"病院経営管理指標等調査!$AA$314","v":0},{"$f":"病院経営管理指標等調査!$AA$315","v":0},{"$f":"病院経営管理指標等調査!$AA$316","v":0},{"$f":"病院経営管理指標等調査!$AA$317","v":0},{"$f":"病院経営管理指標等調査!$AA$318","v":0},{"$f":"病院経営管理指標等調査!$AA$319","v":0},{"$f":"病院経営管理指標等調査!$AA$320","v":0},{"$f":"病院経営管理指標等調査!$AA$321","v":0},{"$f":"病院経営管理指標等調査!$Z$322","v":0},{"$f":"病院経営管理指標等調査!$AA$323","v":0},{"$f":"病院経営管理指標等調査!$AA$324","v":0},{"$f":"病院経営管理指標等調査!$AA$325","v":0},{"$f":"病院経営管理指標等調査!$Z$326","v":0},{"$f":"病院経営管理指標等調査!$AA$327","v":0},{"$f":"病院経営管理指標等調査!$AA$328","v":0},{"$f":"病院経営管理指標等調査!E348","v":0},{"$f":"病院経営管理指標等調査!J348","v":0},{"$f":"病院経営管理指標等調査!O348","v":0},{"$f":"病院経営管理指標等調査!U348","v":0},{"$f":"病院経営管理指標等調査!AA348","v":0},{"$f":"病院経営管理指標等調査!E349","v":0},{"$f":"病院経営管理指標等調査!J349","v":0},{"$f":"病院経営管理指標等調査!O349","v":0},{"$f":"病院経営管理指標等調査!U349","v":0},{"$f":"病院経営管理指標等調査!AA349","v":0},{"$f":"IF(病院経営管理指標等調査!$AH$364=TRUE,1,0)","v":0},{"$f":"IF(病院経営管理指標等調査!$AH$365=TRUE,1,0)","v":0},{"$f":"IF(病院経営管理指標等調査!$AH$366=TRUE,1,0)","v":0},{"$f":"IF(病院経営管理指標等調査!$AH$367=TRUE,1,0)","v":0},{"$f":"IF(病院経営管理指標等調査!$AH$368=TRUE,1,0)","v":0},{"$f":"IF(病院経営管理指標等調査!$AH$369=TRUE,1,0)","v":0},{"$f":"IF(病院経営管理指標等調査!$AH$370=TRUE,1,0)","v":0},{"$f":"IF(病院経営管理指標等調査!$AI$364=TRUE,1,0)","v":0},{"$f":"IF(病院経営管理指標等調査!$AI$365=TRUE,1,0)","v":0},{"$f":"IF(病院経営管理指標等調査!$AI$366=TRUE,1,0)","v":0},{"$f":"IF(病院経営管理指標等調査!$AI$367=TRUE,1,0)","v":0},{"$f":"IF(病院経営管理指標等調査!$AI$368=TRUE,1,0)","v":0},{"$f":"IF(病院経営管理指標等調査!$AI$369=TRUE,1,0)","v":0},{"$f":"IF(病院経営管理指標等調査!$AI$370=TRUE,1,0)","v":0},{"$f":"病院経営管理指標等調査!$AQ374","v":""},{"$f":"病院経営管理指標等調査!$AU374","v":""},{"$f":"病院経営管理指標等調査!$AY$374","v":""},{"$f":"病院経営管理指標等調査!$BC$374","v":""},{"$f":"病院経営管理指標等調査!$BG$374","v":""},{"$f":"病院経営管理指標等調査!$BK$374","v":""},{"$f":"病院経営管理指標等調査!$AQ375","v":""},{"$f":"病院経営管理指標等調査!$AU375","v":""},{"$f":"病院経営管理指標等調査!$AY$375","v":""},{"$f":"病院経営管理指標等調査!$BC$375","v":""},{"$f":"病院経営管理指標等調査!$BG$375","v":""},{"$f":"病院経営管理指標等調査!$BK$375","v":""},{"$f":"病院経営管理指標等調査!$AQ$384","v":""},{"$f":"病院経営管理指標等調査!$AV$384","v":""},{"$f":"病院経営管理指標等調査!$BA$384","v":""},{"$f":"病院経営管理指標等調査!$BF$384","v":""},{"$f":"病院経営管理指標等調査!$AQ$390","v":""},{"$f":"病院経営管理指標等調査!$AV$390","v":""},{"$f":"病院経営管理指標等調査!$BA$390","v":""},{"$f":"病院経営管理指標等調査!$AQ$385","v":""},{"$f":"病院経営管理指標等調査!$AV$385","v":""},{"$f":"病院経営管理指標等調査!$BA$385","v":""},{"$f":"病院経営管理指標等調査!$BF$385","v":""},{"$f":"病院経営管理指標等調査!$AQ$391","v":""},{"$f":"病院経営管理指標等調査!$AV$391","v":""},{"$f":"病院経営管理指標等調査!$BA$391","v":""},{"$f":"病院経営管理指標等調査!$AV$386","v":""},{"$f":"病院経営管理指標等調査!$BA$386","v":""},{"$f":"病院経営管理指標等調査!$BF$386","v":""},{"$f":"病院経営管理指標等調査!$AQ$398","v":""},{"$f":"病院経営管理指標等調査!$AV$398","v":""},{"$f":"病院経営管理指標等調査!$BA$398","v":""},{"$f":"病院経営管理指標等調査!$BF$398","v":""},{"$f":"病院経営管理指標等調査!$BK$398","v":""},{"$f":"病院経営管理指標等調査!$AQ$399","v":""},{"$f":"病院経営管理指標等調査!$AV$399","v":""},{"$f":"病院経営管理指標等調査!$BA$399","v":""},{"$f":"病院経営管理指標等調査!$BF$399","v":""},{"$f":"病院経営管理指標等調査!$BK$399","v":""},{"$f":"病院経営管理指標等調査!$AV$400","v":""},{"$f":"病院経営管理指標等調査!$BA$400","v":""},{"$f":"病院経営管理指標等調査!$BF$400","v":""},{"$f":"IF(病院経営管理指標等調査!$AI$403=TRUE,1,0)","v":0},{"$f":"IF(病院経営管理指標等調査!$AI$404=TRUE,1,0)","v":0},{"$f":"IF(病院経営管理指標等調査!$AI$405=TRUE,1,0)","v":0},{"$f":"IF(病院経営管理指標等調査!$AI$406=TRUE,1,0)","v":0},{"$f":"IF(病院経営管理指標等調査!$AI$407=TRUE,1,0)","v":0},{"$f":"IF(病院経営管理指標等調査!$AJ$403=TRUE,1,0)","v":0},{"$f":"IF(病院経営管理指標等調査!$AJ$404=TRUE,1,0)","v":0},{"$f":"IF(病院経営管理指標等調査!$AJ$405=TRUE,1,0)","v":0},{"$f":"IF(病院経営管理指標等調査!$AJ$406=TRUE,1,0)","v":0},{"$f":"IF(病院経営管理指標等調査!$AJ$407=TRUE,1,0)","v":0},{"$f":"IF(病院経営管理指標等調査!$AI$408=TRUE,1,0)","v":0},{"$f":"IF(病院経営管理指標等調査!$AI$409=TRUE,1,0)","v":0},{"$f":"IF(病院経営管理指標等調査!$AJ$408=TRUE,1,0)","v":0},{"$f":"IF(病院経営管理指標等調査!$AI$410=TRUE,1,0)","v":0},{"$f":"IF(病院経営管理指標等調査!$AI$411=TRUE,1,0)","v":0},{"$f":"IF(病院経営管理指標等調査!$AI$412=TRUE,1,0)","v":0},{"$f":"IF(病院経営管理指標等調査!$AJ$410=TRUE,1,0)","v":0},{"$f":"IF(病院経営管理指標等調査!$AJ$411=TRUE,1,0)","v":0},{"$f":"IF(病院経営管理指標等調査!$AJ$412=TRUE,1,0)","v":0},{"$f":"IF(病院経営管理指標等調査!$AI$413=TRUE,1,0)","v":0},{"$f":"IF(病院経営管理指標等調査!$AI$414=TRUE,1,0)","v":0},{"$f":"IF(病院経営管理指標等調査!$AI$415=TRUE,1,0)","v":0},{"$f":"IF(病院経営管理指標等調査!$AI$416=TRUE,1,0)","v":0},{"$f":"IF(病院経営管理指標等調査!$AJ$413=TRUE,1,0)","v":0},{"$f":"IF(病院経営管理指標等調査!$AJ$414=TRUE,1,0)","v":0},{"$f":"IF(病院経営管理指標等調査!$AJ$415=TRUE,1,0)","v":0},{"$f":"IF(病院経営管理指標等調査!$AI$417=TRUE,1,0)","v":0},{"$f":"IF(病院経営管理指標等調査!$AI$418=TRUE,1,0)","v":0},{"$f":"IF(病院経営管理指標等調査!$AI$419=TRUE,1,0)","v":0},{"$f":"IF(病院経営管理指標等調査!$AI$420=TRUE,1,0)","v":0},{"$f":"IF(病院経営管理指標等調査!$AJ$417=TRUE,1,0)","v":0},{"$f":"IF(病院経営管理指標等調査!$AJ$418=TRUE,1,0)","v":0},{"$f":"IF(病院経営管理指標等調査!$AJ$419=TRUE,1,0)","v":0},{"$f":"IF(病院経営管理指標等調査!$AJ$420=TRUE,1,0)","v":0},{"$f":"IF(病院経営管理指標等調査!$AI$421=TRUE,1,0)","v":0},{"$f":"IF(病院経営管理指標等調査!$AI$422=TRUE,1,0)","v":0},{"$f":"IF(病院経営管理指標等調査!$AI$423=TRUE,1,0)","v":0},{"$f":"IF(病院経営管理指標等調査!$AI$424=TRUE,1,0)","v":0},{"$f":"IF(病院経営管理指標等調査!$AI$425=TRUE,1,0)","v":0},{"$f":"IF(病院経営管理指標等調査!$AI$426=TRUE,1,0)","v":0},{"$f":"IF(病院経営管理指標等調査!$AI$427=TRUE,1,0)","v":0},{"$f":"IF(病院経営管理指標等調査!$AI$428=TRUE,1,0)","v":0},{"$f":"IF(病院経営管理指標等調査!$AJ$421=TRUE,1,0)","v":0},{"$f":"IF(病院経営管理指標等調査!$AJ$422=TRUE,1,0)","v":0},{"$f":"IF(病院経営管理指標等調査!$AJ$423=TRUE,1,0)","v":0},{"$f":"IF(病院経営管理指標等調査!$AJ$424=TRUE,1,0)","v":0},{"$f":"IF(病院経営管理指標等調査!$AJ$425=TRUE,1,0)","v":0},{"$f":"IF(病院経営管理指標等調査!$AJ$426=TRUE,1,0)","v":0},{"$f":"IF(病院経営管理指標等調査!$AJ$427=TRUE,1,0)","v":0},{"$f":"IF(病院経営管理指標等調査!$AJ$428=TRUE,1,0)","v":0},{"$f":"病院経営管理指標等調査!$AV$504","v":0},{"$f":"病院経営管理指標等調査!$AV$505","v":0},{"$f":"病院経営管理指標等調査!$AV$506","v":0},{"$f":"病院経営管理指標等調査!$AV$507","v":0},{"$f":"病院経営管理指標等調査!$AV$508","v":0},{"$f":"病院経営管理指標等調査!$AV$509","v":0},{"$f":"病院経営管理指標等調査!$AV$510","v":0},{"$f":"病院経営管理指標等調査!$AV$511","v":0},{"$f":"病院経営管理指標等調査!$BL$504","v":0},{"$f":"病院経営管理指標等調査!$BL$505","v":0},{"$f":"病院経営管理指標等調査!$BL$506","v":0},{"$f":"病院経営管理指標等調査!$BL$507","v":0},{"$f":"病院経営管理指標等調査!$BL$508","v":0},{"$f":"病院経営管理指標等調査!$BL$509","v":0},{"$f":"病院経営管理指標等調査!$BL$510","v":0},{"$f":"病院経営管理指標等調査!$AJ$534","v":0},{"$f":"病院経営管理指標等調査!AL540","v":""},{"$f":"病院経営管理指標等調査!AL541","v":""},{"$f":"病院経営管理指標等調査!AY540","v":""},{"$f":"病院経営管理指標等調査!AY541","v":""},{"$f":"病院経営管理指標等調査!$BI$540","v":0},{"$f":"病院経営管理指標等調査!$AJ$544","v":0}]